{"text_format":"1","workbook":"xlsx","n_sheets":22,"sheets":["Cover Page","Contents","Facility Info","Operational Data","Operational Summary","Perf. Form 1","Energy Form 1","Permit Compliance","Improvements","Public Liasion","CO2 N20","Residue Quality ","Water","Air (periodic)","Air (CEMS)","NOx","CO 95% 10 min","HCl","SO2","TOC","Particulates","NH3"],"not_rendered":{"charts":7,"images":3,"macros":1,"external_links":0,"defined_names":22,"comments":0,"pivot_tables":0},"unopened":[],"bounds":{"document_bytes":16777216,"sheet_cells":100000,"rows_first":2000,"rows_last":500,"rows_between":2000,"halvings":0,"cell_chars":16384,"cell_head_chars":4096},"cells_cut":0,"cells_raw":0,"read":"whole","date_system":"1900"}

{"sheet":"Cover Page","index":0,"n_rows":53,"n_cols":14,"rows_kept":53,"cut":false,"hidden":false,"merged":[[48,2,48,3],[48,6,48,8],[52,2,52,3],[36,1,36,8],[40,2,40,8],[42,2,42,4],[44,2,44,4],[46,2,46,3],[46,6,46,8],[13,13,18,15],[34,1,34,8],[0,3,5,6],[7,1,23,8],[28,1,28,8],[30,1,30,8],[32,1,32,8]]}
[null,null,null,"Add company logo"]
[null,null,null,null,null,null,null,null,null,null,null,null,null,"Version 22.2"]
[]
[]
[]
[]
[]
[null,"Add photo"]
[]
[]
[]
[]
[null,null,null,null,null,null,null,null,null,null,null,null,null,"Notes:"]
[null,null,null,null,null,null,null,null,null,null,null,null,null,"This template may require adjustments by individual operators to meet specific reporting requirements as defined in the site Permit(s)"]
[]
[]
[]
[]
[]
[]
[]
[]
[]
[]
[]
[]
[]
[]
[null,"Annual Performance Report 2022"]
[]
[null,"Permit EPR/NP3638ZS"]
[]
[null,"Peterborough Energy Recovery Facility"]
[]
[]
[]
[null,"Viridor Peterborough Limited."]
[]
[null,"Year:",2022]
[]
[null,"Address:","Fourth Drove, Peterborough, PE1 5UR"]
[]
[null,"Tel: ","01733 465284"]
[]
[null,"Email: ","kdjones@viridor.co.uk"]
[]
[null,"Prepared by:","K Jones",null,null,"Position:","EHS Manager"]
[]
[null,"Approved by:","A Beaumont",null,null,"Position:","Plant Manager"]
[]
[null,"Version:"]
[]
[null,"Issue Date:","2023-01-01"]

{"sheet":"Contents","index":1,"n_rows":45,"n_cols":11,"rows_kept":45,"cut":false,"hidden":false,"merged":[[44,0,47,9],[37,1,37,6],[38,1,38,6],[39,1,39,6],[40,1,40,6],[41,1,41,6],[42,1,42,6],[36,1,36,6],[22,1,22,6],[23,1,23,6],[24,1,24,6],[27,1,27,6],[28,1,28,6],[29,1,29,6],[30,1,30,6],[31,1,31,6],[32,1,32,6],[35,1,35,6],[21,1,21,6],[9,1,9,6],[10,1,10,6],[11,1,11,6],[12,1,12,6],[14,1,14,6],[15,1,15,6],[16,1,16,6],[17,1,17,6],[18,1,18,6],[19,1,19,6],[20,1,20,6],[13,1,13,6],[4,10,7,14],[8,1,8,6],[3,1,3,6],[4,1,4,6],[5,1,5,6],[6,1,6,6],[7,1,7,6]]}
[{"$f":"+'Cover Page'!$B$29","v":"Annual Performance Report 2022"},null,null,null,{"$f":"+'Cover Page'!$B$33","v":"Peterborough Energy Recovery Facility"}]
[]
["Contents",null,null,null,null,null,null,null,null,null,"Notes:"]
["Section","Subject",null,null,null,null,null,"Page ",null,null,"Section references and Page nos. to be inserted"]
[null,"Facility Information",null,null,null,null,null,3,null,null,"Sections and Subjects may require adjustment by individual operators to meet specific reporting requirements as defined in the sites Permit(s)"]
[null,"Operational Summary",null,null,null,null,null,"4 - 5."]
[null,"Operational Data",null,null,null,null,null,6]
[null,"Performance Form 1",null,null,null,null,null,"7 - 8."]
[null,"Energy Form 1",null,null,null,null,null,9]
[null,"Permit Compliance",null,null,null,null,null,"10 - 11."]
[null,"Improvements",null,null,null,null,null,12]
[null,"Public Liasion",null,null,null,null,null,13]
[null,"Residue Quality - Optional",null,null,null,null,null,14]
[null,"Carbon Dioxide Emissions",null,null,null,null,null,15]
[null,"Emissions to Water",null,null,null,null,null,16]
[null,"Emissions to Air (periodically monitored)",null,null,null,null,null,17]
[null,"Emissions to Air (continuously monitored)",null,null,null,null,null,18]
[null,"Hydrogen Chloride emissions",null,null,null,null,null,19]
[null,"Sulphur Dioxdie emsissions",null,null,null,null,null,20]
[null,"Oxides of Notrigen emissions",null,null,null,null,null,21]
[null,"Total Organic Carbon emissions",null,null,null,null,null,22]
[null,"Particulate Matter emissions",null,null,null,null,null,23]
[null,"Carbon Monoxide emissions",null,null,null,null,null,24]
[null,"Ammonia emissions",null,null,null,null,null,25]
[]
[]
["Version Control"]
["Section","Information",null,null,null,null,null,"Date"]
[]
[]
[]
[]
[]
[]
["Distribution"]
["Copy","Name, Role",null,null,null,null,null,"No."]
[]
[]
[]
[]
[]
[]
[]
[]
["This report is required under the Industrial Emissions Directive’s Article 55(2) requirements on reporting and public information on waste incineration plants and co-incineration plants, which require the operator to produce an annual report on the functioning and monitoring of the plant and make it available to the public. "]

{"sheet":"Facility Info","index":2,"n_rows":22,"n_cols":11,"rows_kept":22,"cut":false,"hidden":false,"merged":[[4,0,17,8],[21,0,53,8],[4,10,13,13],[21,10,30,13]]}
[{"$f":"+'Cover Page'!$B$29","v":"Annual Performance Report 2022"},null,null,null,{"$f":"+'Cover Page'!$B$33","v":"Peterborough Energy Recovery Facility"}]
[]
["Plant Description and Design",null,null,null,null,null,null,null,null,null,"Notes:"]
[]
["Peterborough Energy from Waste (EfW) facility is located on the eastern side of Peterborough and occupies an area of 4.5 hectares within the Fengate Industrial Estate, approximately 2.5km south-east of the city centre. The ERF enables the city of Peterborough and area to divert about 85,000 tonnes of residual waste from landfill each year.\n\nThe facility is a single line plant which has a capacity for 85,000 tonnes per year and generates electricity (on average 8.5-8.8MWh) to be used internally and exported to the National Grid. The facility design and layout of the steam turbine allows for potential heat export to local users, a small district heating scheme was commissioned in March 2017 serving Dodson House (next door building owned by Peterborough City Council) although this is currently dormant.\n\nViridor Energy Ltd are contracted by Viridor Peterborough Ltd to operate and maintain the plant on their behalf and that of Peterborough City Council.",null,null,null,null,null,null,null,null,null,"Include summary of plant design, design capacity, no. of combustion lines, electrical and heat capacity and any other general information that descibes the facility, its location and purpose "]
[]
[]
[]
[]
[]
[]
[]
[]
[]
[]
[]
[]
[]
[]
["Summary of Operational Processes and Procedures"]
[]
["Incoming refuse collection vehicles and bulk transport vehicles enter the site and proceed to the incoming weighbridge. After weighing in, the vehicles continue to the enclosed reception hall where they will discharge their load into the waste storage bunker.\n\nVehicle loads are inspected randomly in the Tipping Hall to confirm the nature of incoming waste.\nOnce vehicles have deposited their waste they leave the site via a second weighbridge.\nPotential emissions of odour and dust from the tipping hall and refuse bunkers are controlled\nby forced draught fans located above the refuse bunkers. These draw air from the bunker hall\nand reception area into the furnace to feed the combustion process, creating a slight negative\npressure. A mist odour supression system complements this.\n\nThe waste combustion takes place on a Volund Dynagrate the heat generated being used to create superheated steam which is used to drive the steam turbine and generate electricity. Heat from turbine bleeds can be used for combined heat and power systems and is also used for pre-heating of combustion air and operation of the deaerator to maximise efficiency.\n\nCondensing of the steam takes place via air cooled condensing system and the condensate cycles back around in a closed system (other than necessary top up).\n\nEmission control is via injection of ammonia into the furnace for NOx control via SNCR technology. At the end of the boiler and gas path lime and activated carbon are added to remove acidic gases, dioxins, furans and heavy metals before this is all filtered by a bag filter system which removes the lime and carbon added and particulates from the combustion process producing APCr. Emissions are measured continuously in stack and by extractive stack measurements as required by the environmental permit.\n\nResidues from the process, IBA and APCr are both sent to specialist reprocessing sites. IBA has metals removed for recyling and is reprocessed into IBAA (Incinerator Bottom Ash Aggregate). The APCr is sent to OCO Technology (formally Carbon8) who use accelerated cabonation technology to produce a carbon negative aggregate material which encapsulates the absorbed substances from the APCr.\nMaintenance is controlled by a CMMS system and consists of planned preventative maintenance (ppm), derived from both experience of the plant and OEM requirements, and reactive maintenance. An annual shutdown period happens each year during which maintenance and statutory inspections are carried out.\n\nThe plant operates a document control system meeting the requirements of the Viridor document management system and ISO 9001, 14001, 45001 and 50001. ",null,null,null,null,null,null,null,null,null,"Include summary of key processes and procedures such as (but not limited to); waste reception, control rooms, grate, bed and bolier, energy & heat  generation, cooling systems, residue management, emission controls, health and safety systems, maintenance"]

{"sheet":"Operational Data","index":3,"n_rows":66,"n_cols":11,"rows_kept":66,"cut":false,"hidden":false,"merged":[[5,10,6,10],[7,10,18,10],[33,1,45,1],[3,1,3,2],[7,1,19,1],[23,1,26,1],[28,1,29,1]]}
[{"$f":"+'Cover Page'!$B$29","v":"Annual Performance Report 2022"},null,null,null,{"$f":"+'Cover Page'!$B$33","v":"Peterborough Energy Recovery Facility"}]
[]
["Operational Data",null,null,null,null,null,null,null,null,null,"Notes:"]
["Plant Size",85000,null,"tonnes pa",28,"MWth",9,"MWe",null,null,"* - RDF to include SRF "]
["No. of combustion lines",1,null,"No. of Turbines:",null,1,null,null,null,null,"** - CHP plants only"]
[null,null,null,null,null,null,null,null,null,null,"2020 updates include;  heat in MWh, water in Litres, NCV in MJ/kg"]
["Waste types received","Unit","Q1","Q2","Q3","Q4","Year Total","%"]
["Household / Local Authority","tonnes",15698.27,15778.31,13369.97,15578.72,{"$f":"SUM(C8:F8)","v":60425.270000000004},{"$f":"IF(G8>0,G8/$G$18,\"-\")","v":0.66446031273535733},null,null,"Availabiity Definition: 'the availability of a line is to be calculated by the number of hours the line reported Continuously Monitored emission levels to the Regulator through the calendar year divided by the total number of hours in that year. \nThe overall plant availability is calculated as the Mean of all lines in the plant. For clarity this includes periods of Other Than Normal Operating Conditions (OTNOC) and abnormal operation.'  \n\nRationale: The primary function of an Energy from Waste facility is the disposal of waste. It follows therefore that the availability of a plant is determined by the period of time a facility spends undertaking this activity."]
["Commercial & Industrial ",null,7715.36,5224.1000000000004,4003.6,4963.41,{"$f":"SUM(C9:F9)","v":21906.469999999998},0.24089226092208973]
["Hazardous ",null,null,null,null,null,0,"-"]
["Clinical 18 01 04",null,1917.34,1984.54,2112.66,1847.96,7862.5,8.6459178566876849E-2]
["Waste wood (biomass) ",null,null,null,null,null,0,"-"]
["Refuse Derived Fuel * - H'hold/LA",null,null,null,null,null,{"$f":"SUM(C13:F13)","v":0},"-"]
["Refuse Derived Fuel *  - C&I",null,null,null,null,null,0,"-"]
["lft 18 01 07",null,0.2,0,0,0,0.2,2.1992795819873285E-6]
["street cleaning 20 03 03",null,0,356.67,197.19,190.57,744.43000000000006]
["Other [Please specify]",null,null,null,null,null,0]
["Total waste received",null,{"$f":"SUM(C8:C17)","v":25331.170000000002},{"$f":"SUM(D8:D17)","v":23343.62},{"$f":"SUM(E8:E17)","v":19683.419999999998},{"$f":"SUM(F8:F17)","v":22580.659999999996},{"$f":"SUM(G8:G17)","v":90938.87},1]
["Rejected Waste ",null,null,null,null,null,{"$f":"SUM(C19:F19)","v":0},{"$f":"IF(G19>0,G19/$G$18,\"-\")","v":"-"}]
["Unprocessed waste transferred out",null,null,null,null,null,{"$f":"SUM(C20:F20)","v":0},{"$f":"IF(G20>0,G20/$G$18,\"-\")","v":"-"}]
["Total waste combusted",null,{"$f":"C18-SUM(C19:C20)","v":25331.170000000002},{"$f":"D18-SUM(D19:D20)","v":23343.62},19683.419999999998,22580.659999999996,{"$f":"SUM(C21:F21)","v":90938.87},{"$f":"IF(G21>0,G21/$G$18,\"-\")","v":1}]
[]
["Energy Useage / Export","Unit","Q1","Q2","Q3","Q4","Year Total","KWh/te",null,null,"NOTE:- clinical line 18 01 04 is non-haz offensive waste"]
["Power Generated","MWh",16567,15580,12683,15407.66,{"$f":"SUM(C24:F24)","v":60237.66},{"$f":"IF(G24>0,G24*1000/$G$21,\"-\")","v":662.39727852347414},null,null,"Approval given for acccepting 18 01 07 under RPS C23"]
["Power Exported",null,14514,13552,11028,13612.11,{"$f":"SUM(C25:F25)","v":52706.11},{"$f":"IF(G25>0,G25*1000/$G$21,\"-\")","v":579.5773578448908}]
["Power Used on site",null,2054,2028,1655,1795.55,{"$f":"SUM(C26:F26)","v":7532.55},{"$f":"IF(G26>0,G26*1000/$G$21,\"-\")","v":82.83091707649325}]
["Power Imported",null,6.39,107.78,251,67.14,432.31,{"$f":"IF(G27>0,G27*1000/$G$21,\"-\")","v":4.7538527804447099}]
["Parasitic Load","%",{"$f":"IF(C24>0,1-C25/(C24+C27),\"-\")","v":0.1242588269509135},{"$f":"IF(D24>0,1-D25/(D24+D27),\"-\")","v":0.13614290868433909},{"$f":"IF(E24>0,1-E25/(E24+E27),\"-\")","v":0.14736353796196078},{"$f":"IF(F24>0,1-F25/(F24+F27),\"-\")","v":0.12036924548297867},{"$f":"IF(G24>0,1-G25/(G24+G27),\"-\")","v":0.13126527011633593},1.4434451419545451E-3]
["Thermal Energy Produced **","MWh",null,null,null,null,{"$f":"SUM(C29:F29)","v":0},{"$f":"IF(G29>0,G29*1000/$G$21,\"-\")","v":"-"}]
["Thermal Energy Exported **",null,null,null,null,null,0,{"$f":"IF(G30>0,G30*1000/$G$21,\"-\")","v":"-"}]
["R1 value (if applicable)",null,null,null,null,0.8,"operational"]
[]
["Waste Disposal & Recovery","Unit","Q1","Q2","Q3","Q4","Year Total","% inputs"]
["19 01 07* APC Residues - produced","tonnes",618.29999999999995,515.12,377.67,423.56,{"$f":"SUM(C34:F34)","v":1934.65},{"$f":"IF(G34>0,G34/$G$21,\"-\")","v":2.1274181216458927E-2}]
["19 01 12 IBA - produced",null,5328.73,5270.12,4296.58,4645.7,19541.129999999997,{"$f":"IF(G35>0,G35/$G$21,\"-\")","v":0.21488204108980019}]
["20 01 40 Metals recycling",null,6.04,0,0,0,{"$f":"SUM(C36:F36)","v":6.04},6.6418243376017324E-5]
["19 12 02 Ferrous metals",null,0,0,49.62,0,{"$f":"SUM(C37:F37)","v":49.62},5.4564126429105619E-4]
["16 06 01 * Lead acid batteries",null,0,0.25,0,0,0.25,2.7490994774841608E-6]
["13 01 11*  Synthetic hydraulic oil",null,0,0,0,12.5,12.5,1.3745497387420804E-4]
["13 02 05* mineral based  engine, gear & lubricating oils",null,0,0.65,0,0,0.65,7.1476586414588178E-6]
["13 02 06* synthetic engine, gear & lubricating oils",null,0,0,0.8,0,0.8,8.797118327949314E-6,null,{"$f":"SUM(G34,G38,G39,G40,G41,G43,G44,G46)","v":1949.229}]
["20 03 01 Mixed municiple waste",null,0,0,1.92,0,1.92,2.1113083987078352E-5,null,{"$f":"SUM(G35,G36,G37,G42,G45)","v":19599.309999999994}]
["20 01 35* IT & telecom equip containing POP's",null,0,0,0,0.31900000000000001,0.31900000000000001,3.507850933269789E-6]
["20 01 23* Domestic refridgeration",null,0,0,0,0.05,0.05,5.4981989549683212E-7,null,{"$f":"SUM(J41:J42)","v":21548.538999999993}]
["15 01 06 mixed municipal recyclate",null,0,0,0,0.6,{"$f":"SUM(C45:F45)","v":0.6},6.5978387459619855E-6]
["20 01 21* Fluorescent tubes",null,0,0.01,0,0,0.01,1.0996397909936642E-7]
[]
["Raw Material Usage","Unit","Q1","Q2","Q3","Q4","Year Total","kg or Ltr /te"]
["Mains Water","ltrs",11004000,13089000,9839000,10017000,{"$f":"SUM(C49:F49)","v":43949000},{"$f":"IF(G49>0,G49/$G$21,\"-\")","v":483.28069174380551}]
["other water","litres",0,0,0,0]
["Ammonia","litres",56725,60892,57471.199999999997,60432.800000000003,235521,{"$f":"IF(G51>0,G51/$G$21,\"-\")","v":2.5898826321461881},null,null,"kgs ammonia calculated from volume using density ammonia soution = .911"]
["Activated Carbon","kgs",8264,8282,5910,8843,31299,0.34417625818310699]
["Hydrated lime","kgs",386515,271710,208066,194030,1060321,11.659711628261931]
["Fuel oil","ltrs",2988,32991,94771.4,79676.800000000003,210427.2,2.31394122227382]
["Gas","cf",0,0,0,0,0]
["Other",null,0,0,0,0,0]
[]
[]
["Summary ","Line/Unit","Q1","Q2","Q3","Q4","Year Total",null,null,"Hrs in year "]
["Overall Availability, mean avg. of all lines, hrs",1,2160,2063,1787,2117.5,{"$f":"SUM(C60:F60)","v":8127.5},{"$f":"G60/J60","v":0.92779680365296802},null,{"$f":"24*365","v":8760}]
["Hours of turbine operations, hrs",1,2152,1991,1654,2092,{"$f":"SUM(C61:F61)","v":7889},{"$f":"G61/J60","v":0.90057077625570781}]
["Hours of heat / steam export",null,null,null,null,null,0,{"$f":"IF(B62>0,#REF!/#REF!,\"n/a\")","v":"n/a"}]
["Net Calorific Value of waste","MJ/kg",9.08,9.2799999999999994,9.91,8.58,null,{"$f":"AVERAGE(C63:F63)","v":9.2125000000000004}]
["Abnormal Events","qty.",0,0,0,0,0,{"$f":"IF(G64>0,\"yes\",\"no\")","v":"no"}]
["Abnormal operation","hours",null,null,null,null,0,{"$f":"+(G65)/J60","v":0}]
["Permit Breaches","qty.",null,null,null,1,1,{"$f":"IF(G66>0,\"yes\",\"no\")","v":"yes"}]

{"sheet":"Operational Summary","index":4,"n_rows":31,"n_cols":11,"rows_kept":31,"cut":false,"hidden":false,"merged":[[4,0,26,8],[30,0,51,8],[4,10,13,13],[30,10,39,13]]}
[{"$f":"+'Cover Page'!$B$29","v":"Annual Performance Report 2022"},null,null,null,{"$f":"+'Cover Page'!$B$33","v":"Peterborough Energy Recovery Facility"}]
[]
["Summary of Plant Operations and Maintenance during the reporting year",null,null,null,null,null,null,null,null,null,"Notes:"]
[]
["The plant operated for 8128 hours for the year of 2022 with an availability of 92.78% leading to the processing of 90,938 tonnes of waste. The turbine operated for 7889 hours with an availability of 90%. \n\nThe planned annual Outage took place in July for 16 days with routine maintenance and defect rectification conducted. This included significant work in the boiler replacing tubes and refractory, and a full overhaul of the IBA conveyors.\n\n\n\n\n\n\n",null,null,null,null,null,null,null,null,null,"Include summary of key operational and/or mainteanance activity undertaken in the year, such as any major component upgrades and/or replacements "]
[]
[]
[]
[]
[]
[]
[]
[]
[]
[]
[]
[]
[]
[]
[]
[]
[]
[]
[]
[]
[]
[]
[]
["Summary of Residue Handling for the reporting year"]
[]
["They remove and recycle the ferrous and non-ferrous metals and then create IBAA (Incinerator Bottom Ash Aggregate) from the remaining material. Their Aggregates team then utilise this in various construction and highways projects.\n\nAPCr is collected by direct transfer from the on site silo into transport tanker by Grundons and goes to the O.C.O Technology Ltd (formally Carbon8) site at Brandon (EPR/JP3332FK) (unless not possible due to operational issues at OCO in which case it is directed to one of their other plants) where it is taken through their accelerated carbonation technology. These carbonated wastes are blended with binders and fillers and pellitised to form an aggregate.",null,null,null,null,null,null,null,null,null,"Include in here a summary of residue handling regimes and destinations "]

{"sheet":"Perf. Form 1","index":5,"n_rows":59,"n_cols":10,"rows_kept":59,"cut":false,"hidden":false,"merged":[[15,6,15,7],[15,2,15,3],[14,8,14,9],[15,8,15,9],[16,0,16,1],[16,2,16,3],[16,6,16,7],[16,8,16,9],[41,0,41,3],[41,4,41,5],[41,7,41,8],[40,0,40,3],[40,4,40,5],[40,7,40,8],[35,0,35,3],[35,7,35,8],[36,0,36,3],[36,4,36,5],[36,7,36,8],[37,0,37,3],[37,4,37,5],[37,7,37,8],[27,0,27,3],[27,4,27,5],[52,0,52,1],[54,0,54,9],[55,0,56,9],[43,0,43,9],[44,0,45,9],[48,0,48,1],[48,2,48,9],[50,0,50,1],[51,0,51,1],[42,0,42,3],[42,4,42,5],[42,7,42,8],[38,0,38,3],[38,4,38,5],[38,7,38,8],[39,0,39,3],[39,4,39,5],[39,7,39,8],[27,6,27,7],[27,8,27,9],[29,0,29,9],[30,0,32,9],[25,0,25,1],[25,2,25,3],[25,4,25,5],[25,6,25,7],[25,8,25,9],[26,0,26,3],[26,4,26,5],[26,6,26,7],[26,8,26,9],[23,0,23,1],[23,2,23,3],[23,4,23,5],[23,6,23,7],[23,8,23,9],[24,0,24,1],[24,2,24,3],[24,4,24,5],[24,6,24,7],[24,8,24,9],[21,0,21,1],[21,2,21,3],[21,4,21,5],[21,6,21,7],[21,8,21,9],[22,0,22,1],[22,2,22,3],[22,4,22,5],[22,6,22,7],[22,8,22,9],[19,0,19,1],[19,2,19,3],[19,4,19,5],[19,6,19,7],[19,8,19,9],[20,0,20,9],[13,0,13,1],[13,2,13,3],[13,4,13,5],[13,6,13,7],[13,8,13,9],[18,0,18,3],[18,4,18,5],[18,6,18,7],[18,8,18,9],[17,2,17,3],[17,4,17,5],[17,6,17,7],[17,8,17,9],[17,0,17,1],[14,0,14,1],[14,2,14,3],[14,6,14,7],[15,0,15,1],[11,0,11,1],[11,2,11,3],[11,4,11,5],[11,6,11,7],[11,8,11,9],[12,0,12,1],[12,2,12,3],[12,4,12,5],[12,6,12,7],[12,8,12,9],[9,0,9,9],[10,0,10,1],[10,2,10,3],[10,4,10,5],[10,6,10,7],[10,8,10,9],[2,0,2,4],[2,6,2,8],[3,1,3,4],[5,3,5,4],[5,6,5,7],[8,0,8,1],[8,2,8,3],[8,4,8,5],[8,6,8,7],[8,8,8,9]]}
[{"$f":"+'Cover Page'!C39","v":2022}," Annual Reporting Performance Form 1"]
[]
[{"$f":"+'Cover Page'!B31","v":"Permit EPR/NP3638ZS"},null,null,null,null,"Operator: ",{"$f":"+'Cover Page'!$B$33","v":"Peterborough Energy Recovery Facility"}]
["Facility:",{"$f":"+'Cover Page'!B33:I33","v":"Peterborough Energy Recovery Facility"},null,null,null,"Form:","Performance 1"]
[]
["Reporting  Period from: ",null,null,"2022-01-01",null,"to:","2022-12-31"]
[]
[{"$f":"+A1","v":2022},"Annual Reporting of Waste Disposal and Recovery"]
["Waste Description",null,"Disposal Route(s)",null,"Disposal Tonnes",null,"Recovery Tonnes",null,"% / tonne of waste incinerated"]
["1) Hazardous Wastes"]
["19 01 07 APC Residues",null,"OCO Tecnology",null,null,null,{"$f":"'Operational Data'!G34","v":1934.65},null,{"$f":"IF((E11+G11)>0,(E11+G11)/'Operational Data'!$G$21, \"-\")","v":2.1274181216458927E-2}]
["16 06 01 lead acid batteries",null,"LWOL",null,null,null,{"$f":"'Operational Data'!G38","v":0.25},null,{"$f":"IF((E12+G12)>0,(E12+G12)/'Operational Data'!$G$21, \"-\")","v":2.7490994774841608E-6}]
["20 12 21 Fluorescent tubes",null,"LWOL",null,null,null,{"$f":"'Operational Data'!G46","v":0.01},null,{"$f":"IF((E13+G13)>0,(E13+G13)/'Operational Data'!$G$21, \"-\")","v":1.0996397909936642E-7}]
["13 02 06 synthetic engine, gear & lubricating oils",null,"LWOL",null,null,null,{"$f":"'Operational Data'!G41","v":0.8},null,{"$f":"IF((E14+G14)>0,(E14+G14)/'Operational Data'!$G$21, \"-\")","v":8.797118327949314E-6}]
["20 01 35 IT & telecom equip containing POP's",null,"Blackmore Ricotech",null,null,null,{"$f":"'Operational Data'!G43","v":0.31900000000000001},null,{"$f":"IF((E15+G15)>0,(E15+G15)/'Operational Data'!$G$21, \"-\")","v":3.507850933269789E-6}]
["13 01 11 Synthetic hydraulic oil",null,"Augean Treament",null,null,null,{"$f":"'Operational Data'!G39","v":12.5},null,{"$f":"IF((E16+G16)>0,(E16+G16)/'Operational Data'!$G$21, \"-\")","v":1.3745497387420804E-4}]
["20 01 23 equipment containing CFC's (fridge)",null,"LWOL",null,null,null,{"$f":"'Operational Data'!G44","v":0.05},null,{"$f":"IF((E17+G17)>0,(E17+G17)/'Operational Data'!$G$21, \"-\")","v":5.4981989549683212E-7}]
["13 02 05* mineral based engine oil",null,"LWOL",null,null,null,{"$f":"'Operational Data'!G40","v":0.65},null,{"$f":"IF((E18+G18)>0,(E18+G18)/'Operational Data'!$G$21, \"-\")","v":7.1476586414588178E-6}]
["Total Hazardous Waste",null,null,null,{"$f":"SUM(E11:F14)","v":0},null,{"$f":"SUM(G11:H18)","v":1949.229},null,{"$f":"IF((E19+G19)>0,(E19+G19)/'Operational Data'!$G$21, \"-\")","v":2.1434497701587892E-2}]
[]
["2) Non-Hazardous Wastes"]
["19 01 12 IBA",null,null,null,null,null,{"$f":"'Operational Data'!G35","v":19541.129999999997},null,{"$f":"IF((E22+G22)>0,(E22+G22)/'Operational Data'!$G$21, \"-\")","v":0.21488204108980019}]
["20 01 40 recycling Metal",null,null,null,null,null,{"$f":"'Operational Data'!G36","v":6.04},null,{"$f":"IF((E23+G23)>0,(E23+G23)/'Operational Data'!$G$21, \"-\")","v":6.6418243376017324E-5}]
["19 12 02 ferrous metals",null,null,null,null,null,{"$f":"'Operational Data'!G37","v":49.62},null,{"$f":"IF((E24+G24)>0,(E24+G24)/'Operational Data'!$G$21, \"-\")","v":5.4564126429105619E-4}]
["20 03 01 Mixed municipal",null,null,null,null,null,{"$f":"'Operational Data'!G42","v":1.92},null,{"$f":"IF((E25+G25)>0,(E25+G25)/'Operational Data'!$G$21, \"-\")","v":2.1113083987078352E-5}]
["15 01 06 Mixed municipal recyclate",null,null,null,null,null,{"$f":"'Operational Data'!G45","v":0.6},null,{"$f":"IF((E26+G26)>0,(E26+G26)/'Operational Data'!$G$21, \"-\")","v":6.5978387459619855E-6}]
["Total Non-Hazardous Waste",null,null,null,{"$f":"SUM(E22:F26)","v":0},null,{"$f":"SUM(G22:H26)","v":19599.309999999994},null,{"$f":"IF((E27+G27)>0,(E27+G27)/'Operational Data'!$G$21, \"-\")","v":0.21552181152020028}]
["TOTAL WASTE",null,null,null,{"$f":"+E27+E19","v":0},null,{"$f":"SUM(G19,G27)","v":21548.538999999993},null,{"$f":"IF((E28+G28)>0,(E28+G28)/'Operational Data'!$G$21, \"-\")","v":0.23695630922178815}]
[]
["Operator’s comments :"]
["All IBA produced on site (including the metal content) is reprocessed by Johnsons Aggregates who recycle the ferrous and non-ferrous metals and create IBAA (Incinerator Bottom Ash Aggregate) from the remaining material. \n\nAPCr is taken through OCO Technologies accelerated carbonation technology. These carbonated wastes are blended with binders and fillers and pellitised to form an aggregate. Other waste metal e.g. from maintenance is removed by Sims Metals.\n\nWastes such as other wastes, absorbants, lead batteries and spent activated carbon are from maintenance activities during the annual outage."]
[]
[]
[]
[{"$f":"+A1","v":2022},"Annual Reporting of Water and Other Raw Material Usage"]
["Raw Material",null,null,null,"Usage",null,"Unit","Specific Useage",null,"Unit"]
["Mains Water",null,null,null,{"$f":"+'Operational Data'!G49","v":43949000},null,"m3",{"$f":"IF(E37>0,E37/'Operational Data'!$G$21,\"-\")","v":483.28069174380551},null,"m3/te"]
["Total Water",null,null,null,{"$f":"+'Operational Data'!G50","v":0},null,"m3",{"$f":"IF(E38>0,E38/'Operational Data'!$G$21,\"-\")","v":"-"},null,"m3/te"]
["Ammonia",null,null,null,{"$f":"+'Operational Data'!G51","v":235521},null,"kg",{"$f":"IF(E39>0,E39/'Operational Data'!$G$21,\"-\")","v":2.5898826321461881},null,"kg/te"]
["Activated Carbon",null,null,null,{"$f":"+'Operational Data'!G52","v":31299},null,"kg",{"$f":"IF(E40>0,E40/'Operational Data'!$G$21,\"-\")","v":0.34417625818310699},null,"kg/te"]
["Lime / hydrated lime / Sodium Bicarb.",null,null,null,{"$f":"+'Operational Data'!G53","v":1060321},null,"kg",{"$f":"IF(E41>0,E41/'Operational Data'!$G$21,\"-\")","v":11.659711628261931},null,"kg/te"]
["Fuel Oil",null,null,null,{"$f":"+'Operational Data'!G54","v":210427.2}]
[]
["Operator’s comments :"]
[]
[]
[]
[{"$f":"+A35","v":2022},"Annual Reporting of other performance indicators "]
["Parameter",null,"Results by Line"]
[null,null,"A1","A2","A3","A4","A5",null,"Turbine 1","Turbine 2"]
["Operating hours for the year, hours",null,{"$f":"'Operational Data'!G60","v":8127.5},null,null,null,null,null,{"$f":"'Operational Data'!G61","v":7889}]
["Number of periods of abnormal operation, qty.",null,{"$f":"'Operational Data'!G64","v":0},null,null,null,null,null,{"$f":"'Operational Data'!G62","v":0}]
["Cumulative hours of abnormal operation for this year, hours",null,{"$f":"'Operational Data'!G65","v":0},null,null,null,null,null,{"$f":"'Operational Data'!G65","v":0}]
[]
["Operator’s comments :"]
[]
[]
[]
["Signed: ","KDJones",null,null,null,null,"Date:","2023-01-24"]

{"sheet":"Energy Form 1","index":6,"n_rows":29,"n_cols":8,"rows_kept":29,"cut":false,"hidden":false,"merged":[[15,0,15,2],[15,3,15,4],[15,6,15,8],[17,0,17,8],[18,0,24,8],[13,0,13,2],[13,3,13,4],[13,6,13,8],[14,0,14,2],[14,3,14,4],[14,6,14,8],[11,0,11,2],[11,3,11,4],[11,6,11,8],[12,0,12,2],[12,3,12,4],[12,6,12,8],[9,0,9,2],[9,3,9,4],[9,6,9,8],[10,0,10,2],[10,3,10,4],[10,6,10,8],[2,6,2,8],[4,1,4,4],[6,3,6,4],[6,6,6,7],[8,0,8,2],[8,3,8,4],[8,6,8,8]]}
[{"$f":"+'Cover Page'!C39","v":2022}," Annual Reporting of Energy Usage/Export"]
[]
[{"$f":"+'Cover Page'!B31","v":"Permit EPR/NP3638ZS"},null,null,null,null,"Operator: ",{"$f":"+'Cover Page'!$B$33","v":"Peterborough Energy Recovery Facility"}]
[]
["Facility:",{"$f":"+'Cover Page'!B33:I33","v":"Peterborough Energy Recovery Facility"},null,null,null,"Form:","Energy 1"]
[]
["Reporting  Period from: ",null,null,{"$f":"+'Perf. Form 1'!D6:E6","v":"2022-01-01"},null,"to:",{"$f":"+'Perf. Form 1'!G6:H6","v":"2022-12-31"}]
[]
["Energy Source",null,null,"Energy Usage",null,"Unit","Specific Useage (KWh/tonne incinerated"]
["Electricity Produced",null,null,{"$f":"+'Operational Data'!G24","v":60237.66},null,"MWh",{"$f":"+'Operational Data'!H24","v":662.39727852347414}]
["Electricity Imported   ",null,null,{"$f":"+'Operational Data'!G27","v":432.31},null,"MWh",{"$f":"+'Operational Data'!H27","v":4.7538527804447099}]
["Electricity Exported",null,null,{"$f":"+'Operational Data'!G25","v":52706.11},null,"MWh",{"$f":"+'Operational Data'!H25","v":579.5773578448908}]
["Gas Oil",null,null,{"$f":"('Operational Data'!G54*0.85)/1000","v":178.86312000000001},null,"tonnes"]
["Steam/hot water exported",null,null,{"$f":"+'Operational Data'!G30","v":0},null,"GWh","n/a"]
[]
[]
[]
["Operator’s comments :"]
[]
[]
[]
[]
[]
[]
[]
[]
[]
[]
["Signed: ","KDJones",null,null,null,null,"Date:","2023-01-24"]

{"sheet":"Permit Compliance","index":7,"n_rows":34,"n_cols":12,"rows_kept":34,"cut":false,"hidden":false,"merged":[[18,0,18,10],[31,1,31,3],[31,4,31,6],[31,7,31,9],[27,1,27,3],[27,4,27,6],[27,7,27,9],[28,1,28,3],[28,4,28,6],[28,7,28,9],[23,1,23,3],[23,4,23,6],[23,7,23,9],[24,1,24,3],[24,4,24,6],[24,7,24,9],[21,1,21,3],[21,4,21,6],[21,7,21,9],[32,1,32,3],[32,4,32,6],[32,7,32,9],[29,1,29,3],[29,4,29,6],[29,7,29,9],[30,1,30,3],[30,4,30,6],[30,7,30,9],[26,0,26,10],[19,1,19,3],[19,4,19,6],[19,7,19,9],[20,1,20,3],[20,4,20,6],[20,7,20,9],[16,2,16,4],[16,5,16,8],[15,2,15,4],[15,5,15,8],[16,0,16,1],[13,5,13,8],[14,0,14,1],[14,2,14,4],[14,5,14,8],[15,0,15,1],[7,0,7,1],[7,2,7,8],[8,0,8,1],[8,2,8,4],[8,5,8,8],[8,11,17,14],[33,4,33,8],[9,0,9,1],[9,2,9,4],[9,5,9,8],[10,0,10,1],[10,2,10,4],[10,5,10,8],[11,0,11,1],[11,2,11,4],[11,5,11,8],[12,0,12,1],[12,2,12,4],[12,5,12,8],[13,0,13,1],[13,2,13,4]]}
[{"$f":"+'Cover Page'!$B$29","v":"Annual Performance Report 2022"},null,null,null,{"$f":"+'Cover Page'!$B$33","v":"Peterborough Energy Recovery Facility"}]
[]
["Summary of Permit Compliance"]
[]
["Compliance with permit limits for continuously monitored pollutants"]
[]
["The plant met its emission limits as shown in the table below:"]
["Substance",null,"Percentage time compliant during operation",null,null,null,null,null,null,null,null,"Notes:"]
[null,null,"Half-hourly limit",null,null,"Daily limit",null,null,null,null,null,"Report to 2 decimal places, i.e. xx.xx%\n\nPlease provide a brief summary of each notification or non-compliance in the table (rather than just referring to notifications that were sent to the Regulator).  \n\n"]
["Particulates",null,1,null,null,1]
["Oxides of nitrogen",null,1,null,null,1]
["Sulphur dioxide",null,1,null,null,1]
["Carbon monoxide",null,"100.00 % or \n95% of 10-min averages",null,null,1]
["Total organic carbon",null,1,null,null,1]
["Hydrogen chloride",null,1,null,null,1]
["Hydrogen fluoride",null,1,null,null,1]
[null,null,"xx.xx %",null,null,"xx.xx %"]
[]
["Summary of any notifications or non-compliances under the permit"]
["Date","Summary of notification or non-compliance [including Line/Reference]",null,null,"Reason ",null,null,"Measures taken to prevent reoccurrence"]
["2022-11-24","Notification 5, part b.TOC analysis of Incinerator Bottom Ash (IBC) permitted level of 3% exceeded by  0.5%",null,null,"Absolute reason unconfirmed but possible cause- explosion on grate, leading to rapid reduction in O2, affecting burn of material and possible unburnt matterial being processsed.",null,null,"Immediate response was manual input of secondary air to obtain maximum burn environment. Extended response is continued waste reception checks, liaising with waste/fuel providers of waste material contents."]
[]
[]
[]
[]
[]
["Summary of any complaints received and actions to taken to resolve them."]
["Date","Summary of complaint [including Line/Reference]",null,null,"Reason *",null,null,"Measures taken to prevent reoccurrence"]
[null,"nil"]
[]
[]
[]
[]
[null,null,null,null,"* including whether substantiated by the operator or the EA"]

{"sheet":"Improvements","index":8,"n_rows":38,"n_cols":5,"rows_kept":38,"cut":false,"hidden":false,"merged":[[37,0,37,8],[38,0,47,8],[4,0,4,8],[5,0,13,8],[15,0,15,8],[16,0,24,8],[26,0,26,8],[27,0,35,8]]}
[{"$f":"+'Cover Page'!$B$29","v":"Annual Performance Report 2022"},null,null,null,{"$f":"+'Cover Page'!$B$33","v":"Peterborough Energy Recovery Facility"}]
[]
["Summary of Plant Improvements"]
[]
["Summary of any efficiency improvements that have been completed within the year."]
[]
[]
[]
[]
[]
[]
[]
[]
[]
[]
["Summary of any permit improvement conditions that have been completed within the year and the resulting environmental benefits."]
["None \nAll completed between December 2015 and April 2017 within timeframes required by permit.\nAll accepted by the Agency "]
[]
[]
[]
[]
[]
[]
[]
[]
[]
["Summary of any changes to the plant or operating techniques which required a variation to the permit and a summary of the resulting environmental impact."]
["Plant MCR increased from 100% to 103%.\nApplication for permit variation submitted 17 Jun 22 for increase in waste input and processing to 106kt. This application is based on the change to 103% MCR and further future increases in MCR, CV redcution and improved availability. \nEIA completed as part of permit variation submission.\n\n"]
[]
[]
[]
[]
[]
[]
[]
[]
[]
["Summary of any other improvements made to the plant or planned to be made and a summary of the resulting environmental benefits."]

{"sheet":"Public Liasion","index":9,"n_rows":29,"n_cols":5,"rows_kept":29,"cut":false,"hidden":false,"merged":[[23,0,24,1],[23,2,24,8],[25,0,26,1],[25,2,26,8],[28,0,28,8],[17,0,18,1],[17,2,18,8],[19,0,20,1],[19,2,20,8],[21,0,22,1],[21,2,22,8],[16,0,16,1],[16,2,16,8],[5,0,5,1],[5,2,5,8],[6,0,7,1],[6,2,7,8],[8,0,9,1],[8,2,9,8],[10,0,11,1],[10,2,11,8],[12,0,13,1],[12,2,13,8],[15,0,15,8]]}
[{"$f":"+'Cover Page'!$B$29","v":"Annual Performance Report 2022"},null,null,null,{"$f":"+'Cover Page'!$B$33","v":"Peterborough Energy Recovery Facility"}]
[]
["Details of Public & Stakeholder Liasion"]
[]
["Summary of events held during the reporting year."]
["Date",null,"Description"]
["Bi Monthly",null,"Client liaisons with Peterborough City Council"]
[]
["Planned visits for April and November and as requested.",null,"Heritage open days for general public. Organised school/college tours."]
[]
["Quarterly",null,"Viridor in Peterborough Meetings for the Viridor in Peterborough community fund - funding local projects based around sustainability, local need, community involvement, value for money and education"]
[]
[null,null,"We will hold community liaison meetings on request after no attendance by local companies or residents since August 2016."]
[]
[]
["List of events planned for next year"]
["Date",null,"Description"]
[]
[]
[]
[]
[]
[]
[]
[]
[]
[]
[]
["If you wish to be involved in the public liasion programme, please contact _________________"]

{"sheet":"CO2 N20","index":10,"n_rows":22,"n_cols":5,"rows_kept":22,"cut":false,"hidden":false,"merged":[[19,1,19,2],[22,0,23,2],[4,0,4,2],[8,1,8,2],[10,0,10,2],[12,1,12,2],[15,0,15,2],[17,1,17,2]]}
[{"$f":"+'Cover Page'!$B$29","v":"Annual Performance Report 2022"},null,{"$f":"+'Cover Page'!$B$33","v":"Peterborough Energy Recovery Facility"}]
[]
["Carbon dioxide emissions and biogenic content of waste inputs",null,null,null,"Notes:"]
[]
["Carbon dioxide emissions (all types of plant)"]
["Annual mass of carbon dioxide released","x tonnes ",105709]
["Annual mass of carbon dioxide released per tonne of waste burned","x tonnes ",1.167]
["Annual mass of carbon dioxide released per MWh of energy generated","x tonnes ",1.7549999999999999,"105709/60,237=1.755"]
["Description of how annual carbon dioxide mass emission has been calculated","Fully calibrated CEM's used to calculate the data.",null,"Where available, data from CO2 CEMS should be used; otherwise, a suitable emissions factor should be used based on the tonnage of waste burned e.g.0.992 tCO2/t waste as per Tolvik report 2021, or other justified emissions factor  - refer to adjacent Environment Agency guidance note or updated version for example descriptive text."]
[]
["Nitrous oxide emissions (only plants which use ammonia or urea to abate NOx emissions)"]
["Total annual mass emissions of nitrous oxide N20","x tonnes ",0.26200000000000001]
["Description of how annual nitrous oxide mass emission has been calculated","Fully calibrated CEM's used to calculate the data ",null,"Where available, data from N2O CEMS or periodic monitoring data should be used; otherwise, a suitable emissions factor should be used based on the tonnage of waste burned e.g. 0.0981 kgN20/t waste as per 2021 Pollution Inventory data for plants with urea-based SNCR - refer to adjacent Environment Agency guidance note or updated version for example descriptive text."]
["Total annual carbon dioxide and nitrous oxide emissions as carbon dioxide equivalent (whereby 1 kg nitrous oxide is equivalent to 298 kg carbon dioxide)","x tonnes CO2e",105786.9]
[]
["Biogenic fraction of the waste and biogenic CO2 emissions (only plants burning residual municipal waste, refuse derived fuel or solid recovered fuel)"]
["Yearly average biogenic percentage of the waste by mass","x %",49.4]
["Description of how biogenic percentage has been calculated","The method used for determining biomass is the selective dissolution method as defined in BS EN ISO 21644:2021. This method involves treatment of the sample with concentrated sulphuric acid and hydrogen peroxide. Generally, the biomass in the sample will selectively dissolve leaving a non-biomass residue. The original mass of sample and mass of residue are measured. The result is calculated from the mass values and the ash content to give a result in %.",null,"Where available, data from waste sampling should be used; otherwise, an estimated figure with justification can be used, or a figure assumed on the basis of a national average e.g. 2017 WRAP data for residual waste of 51.8% biogenic energy content - refer to adjacent Environment Agency guidance note or updated version for example descriptive text."]
["Percentage of total carbon dioxide emissions arising from biogenic waste","x %",45.7]
["Description of how percentage biogenic carbon dioxide emissions have been calculated","The method used for determining biomass is the selective dissolution method as defined in BS EN ISO 21644:2021. This method involves treatment of the sample with concentrated sulphuric acid and hydrogen peroxide. Generally, the biomass in the sample will selectively dissolve leaving a non-biomass residue. The original mass of sample and mass of residue are measured. The result is calculated from the mass values and the ash content to give a result in %.",null,"Examples include direct measurement via C14 method, BIOMA software or other method based on measured or assumed waste biogenic content - refer to adjacent Environment Agency guidance note or updated version for example descriptive text."]
[]
["Comments:"]

{"sheet":"Residue Quality ","index":11,"n_rows":35,"n_cols":6,"rows_kept":35,"cut":false,"hidden":false,"merged":[[35,0,40,6],[32,3,32,4],[34,0,34,6],[27,0,28,1],[29,0,29,1],[30,0,30,1],[31,0,31,1],[32,0,32,1],[29,3,29,4],[30,3,30,4],[29,5,29,6],[30,5,30,6],[31,5,31,6],[32,5,32,6],[20,0,21,1],[20,2,21,6],[22,0,23,1],[22,2,23,6],[31,3,31,4],[27,2,28,2],[28,3,28,4],[28,5,28,6],[27,3,27,6],[26,0,26,6],[5,0,6,6],[7,0,8,6],[9,0,10,6],[14,0,15,1],[14,2,15,6],[16,0,17,1],[16,2,17,6],[18,0,19,1],[18,2,19,6],[12,0,12,6],[13,0,13,1],[13,2,13,6]]}
[{"$f":"+'Cover Page'!$B$29","v":"Annual Performance Report 2022"},null,null,null,{"$f":"+'Cover Page'!$B$33","v":"Peterborough Energy Recovery Facility"}]
[]
["Residue Quality Monitoring Requirements"]
[]
["Summary of monitoring undertaken and compliance"]
["IBA undergoes quarterly sampling as required by permit condition 3.5.1c and table 3.5 including TOC, dioxins & furans. TOC has a limit of <3%."]
[]
["24 samples of IBA are taken each year (including the 4 permit complaince samples) to undergo basic hazard analysis as required by the ESA protocol."]
[]
["APCr is sampled quarterly as per permit condition 3.5.1c and table 3.5"]
[]
[]
["Commentary on any specific events"]
["Date & Event",null,"Description"]
[]
[]
[]
[]
[]
[]
[]
[]
[]
[]
[]
[]
["Residue Quality Monitoring Results"]
["Parameter (unit) ",null,"Limit","Normal Operation "]
[null,null,null,"Bottom ash  ",null,"APC Residues"]
["Loss on Ignition (average %)",null,"<5%","n/a"]
["Total Organic Carbon (average %)",null,"<3%",1.33]
["No. of Assessments Undertaken",null,"---","4 Permit compliance samples\n24 ESA hazard assessment",null,4]
["No. of Hazardous Results",null,"---",0]
[]
["Comments :"]

{"sheet":"Water","index":12,"n_rows":23,"n_cols":9,"rows_kept":23,"cut":false,"hidden":false,"merged":[[29,0,29,2],[29,3,29,4],[26,0,26,2],[26,3,26,4],[27,0,27,2],[27,3,27,4],[28,0,28,2],[28,3,28,4],[23,0,23,2],[23,3,23,4],[24,0,24,2],[24,3,24,4],[25,0,25,2],[25,3,25,4],[21,0,21,8],[22,0,22,2],[22,3,22,4],[14,0,15,1],[14,2,15,8],[16,0,17,1],[16,2,17,8],[18,0,19,1],[18,2,19,8],[5,0,6,8],[7,0,8,8],[9,0,10,8],[12,0,12,8],[13,0,13,1],[13,2,13,8]]}
[{"$f":"+'Cover Page'!$B$29","v":"Annual Performance Report 2022"},null,null,null,{"$f":"+'Cover Page'!$B$33","v":"Peterborough Energy Recovery Facility"}]
[]
["Emissions to Water"]
[]
["Summary of monitoring undertaken and compliance"]
["Samples taken monthly.Penstock remains closed unless otherwise directed. Visible checks undertaken as part of site walks - free of visible oil and grease"]
[]
[" Qtrly PPM checks on penstock operation/condition."]
[]
[]
[]
[]
["Commentary on any specific events"]
["Date & Event",null,"Description"]
[]
[]
[]
[]
[]
[]
[]
["Emissions to Water / Sewer"]
["Parameter",null,null,"Monitoring Frequency",null,"Limit","Target","Max.","Average"]

{"sheet":"Air (periodic)","index":13,"n_rows":39,"n_cols":13,"rows_kept":39,"cut":false,"hidden":false,"merged":[[18,3,18,4],[27,3,27,4],[33,3,33,4],[19,3,19,4],[20,3,20,4],[21,3,21,4],[22,3,22,4],[23,3,23,4],[24,3,24,4],[31,3,31,4],[25,3,25,4],[26,3,26,4],[28,3,28,4],[13,3,13,4],[14,3,14,4],[15,3,15,4],[16,3,16,4],[17,3,17,4],[38,0,38,9],[19,0,19,1],[20,0,20,1],[21,0,21,1],[34,3,34,4],[35,3,35,4],[33,0,33,1],[34,0,34,1],[35,0,35,1],[36,0,36,1],[24,0,24,1],[32,3,32,4],[39,0,40,9],[25,0,25,1],[26,0,26,1],[22,0,22,1],[23,0,23,1],[37,0,37,1],[27,0,27,1],[28,0,28,1],[29,0,29,1],[30,0,30,1],[31,0,31,1],[32,0,32,1],[37,3,37,4],[29,3,29,4],[30,3,30,4],[36,3,36,4],[16,0,16,1],[17,0,17,1],[18,0,18,1],[13,0,13,1],[14,0,14,1],[15,0,15,1],[12,0,12,1],[11,3,11,4],[12,3,12,4],[9,0,10,1],[9,5,9,9],[9,3,10,4],[9,2,10,2],[5,12,8,15],[9,12,11,15],[8,0,8,9],[5,0,6,9],[11,0,11,1]]}
[{"$f":"+'Cover Page'!$B$29","v":"Annual Performance Report 2022"},null,null,null,{"$f":"+'Cover Page'!$B$33","v":"Peterborough Energy Recovery Facility"}]
[]
["Emissions to Air (periodically monitored)"]
[]
["Summary of monitoring undertaken, standards used and compliance",null,null,null,null,null,null,null,null,null,null,null,"Notes:"]
["All analysis below completed by permit specified BS EN method other than nitrous oxide which was completed by allowed alternative method M22.",null,null,null,null,null,null,null,null,null,null,null,"Template may require adjustment for any bespoke monitoring requirements of permit. "]
[]
[]
["Results of emissions to air that are periodically monitored"]
["Substance",null,"Ref. Period","Emission Limit Value",null,"Average",null,null,null,null,null,null,"User to add additional tables as necessary, depending on whether quarterly or bi-annual reporting is required for the compliance year"]
[null,null,null,null,null,"A1","A2","A3","A4","A5"]
["Hydrogen fluoride",null,"1 hr","2 mg/m3",null,0.04,0.08]
["Cd and Th and their compounds",null,"6-8hrs","0.05 mg/m3",null,3.0000000000000001E-3,2E-3]
["Hg and its compounds",null,"6-8hrs","0.05 mg/m3",null,5.4000000000000003E-3,1.4E-3]
["Sb, As, Pb, Cr, Co, Cu, Mn, Ni, V and their compounds",null,"6-8hrs","0.5 mg/m3",null,0.09,3.3000000000000002E-2]
["Dioxins & Furans (I-TEQ)",null,"6-8hrs","0.1 ng/m3",null,2E-3,1.6000000000000001E-3]
["PCBs (WHO-TEQ Humans / Mammals)",null,"6-8hrs","None set ng/m3",null,1E-4,4.0000000000000002E-4]
["PCBs (WHO-TEQ Fish)",null,"6-8hrs","None set ng/m3",null,9.0000000000000002E-6,2.0000000000000002E-5]
["PCBs (WHO-TEQ Birds)",null,"6-8hrs","None set ng/m3",null,4.0000000000000002E-4,1.1000000000000001E-3]
["Dioxins & Furans (WHO-TEQ Humans / Mammals)",null,"6-8hrs","None set ng/m3",null,"0.001 - 0.002","0.0014 - 0.0017"]
["Dioxins & Furans (WHO-TEQ Fish)",null,"6-8hrs","None set ng/m3",null,"0.001 - 0.002","0.0015 - 0.0019"]
["Dioxins & Furans (WHO-TEQ Birds)",null,"6-8hrs","None set ng/m3",null,5.0000000000000001E-3,"0.0026 - 0.0030"]
["Anthanthrene",null,"6-8hrs","None set µg/m3",null,1.5E-3,1.4E-3]
["Benzo(a)anthracene",null,"6-8hrs","None set µg/m3",null,0,1.4E-3]
["Benzo(a)pyrene",null,"6-8hrs","None set µg/m3",null,0,1.4E-3]
["Benzo(b)fluoranthene",null,"6-8hrs","None set µg/m3",null,0,0]
["Benzo(b)naptho(2,1-d) thiophene",null,"6-8hrs","None set µg/m3",null,0,1.4E-3]
["Benzo(c)phenanthrene",null,"6-8hrs","None set µg/m3",null,1.5E-3,1.4E-3]
["Benzo(ghi)perylene",null,"6-8hrs","None set µg/m3",null,0.01,0]
["Benzo(k)fluoranthene",null,"6-8hrs","None set µg/m3",null,0,1.4E-3]
["Cholanthrene",null,"6-8hrs","None set µg/m3",null,1.5E-3,1.4E-3]
["Chrysene",null,"6-8hrs","None set µg/m3",null,0.01,0]
["Cyclopenta(cd)pyrene",null,"6-8hrs","None set µg/m3",null,0,0]
["Dibenzo(ai)pyrene",null,"6-8hrs","None set µg/m3",null,1.5E-3,1.4E-3]
["Dibenzo(ah)anthracene",null,"6-8hrs","None set µg/m3",null,1.5E-3,1.4E-3]
["Fluoranthene",null,"6-8hrs","None set µg/m3",null,0.08,0.05]
["Indeno(123-cd) pyrene",null,"6-8hrs","None set µg/m3",null,0,0]
["Naphthalene",null,"6-8hrs","None set µg/m3",null,0.1,0.02]
["Comments :"]

{"sheet":"Air (CEMS)","index":14,"n_rows":30,"n_cols":16,"rows_kept":30,"cut":false,"hidden":false,"merged":[[27,0,27,12],[29,0,30,12],[13,0,14,0],[5,0,6,12],[7,0,8,12],[10,0,10,12],[11,0,12,0],[11,2,12,2],[11,1,12,1],[11,3,11,4],[11,5,11,6],[11,7,11,8],[11,9,11,10],[11,11,11,12]]}
[{"$f":"+'Cover Page'!$B$29","v":"Annual Performance Report 2022"},null,null,null,null,null,null,null,{"$f":"+'Cover Page'!$B$33","v":"Peterborough Energy Recovery Facility"}]
[]
["Emissions to Air (continously monitored)"]
[null,null,null,null,null,null,null,null,null,null,null,null,null,null,null,"Notes:"]
["Summary of monitoring undertaken, standards used and compliance",null,null,null,null,null,null,null,null,null,null,null,null,null,null,"Template may require adjustment for any bespoke monitoring requirements of permit"]
[null,null,null,null,null,null,null,null,null,null,null,null,null,null,null,"Report to 2 decimal places, i.e. xx.xx%"]
[]
[]
[]
[]
["Results of emissions to air that are continuously monitored (maximum and average values for each line)"]
["Substance","Reference Period","Emission Limit Value","A1",null,"A2",null,"A3",null,"A4",null,"year"]
[null,null,null,"Max.","Avg.","Max.","Avg.","Max.","Avg.","Max.","Avg.","Max.","Avg."]
["Oxides of nitrogen","Daily mean","200 mg/m3 ",124.9,114.1,{"$f":"MAX(NOx!O10:O12)","v":116.4},{"$f":"AVERAGE(NOx!N10:N12)","v":115.39999999999999},{"$f":"MAX(NOx!O13:O15)","v":118.7},{"$f":"AVERAGE(NOx!F13:F15)","v":115.66666666666667},{"$f":"MAX(NOx!O16:O18)","v":125.2},{"$f":"AVERAGE(NOx!F16:F18)","v":115.43333333333332},{"$f":"NOx!O19","v":125.2},{"$f":"NOx!N19","v":115.14999999999998}]
[null,"½ hourly mean","400 mg/m3 ",167.9,114.13,{"$f":"MAX(NOx!M10:M12)","v":142.30000000000001},{"$f":"AVERAGE(NOx!L10:L12)","v":115.43333333333334},{"$f":"MAX(NOx!M13:M15)","v":220.8},{"$f":"AVERAGE(NOx!L13:L15)","v":115.7},{"$f":"MAX(NOx!M16:M18)","v":195.4},{"$f":"AVERAGE(NOx!L16:L18)","v":115.33333333333333},{"$f":"NOx!M19","v":220.8},{"$f":"NOx!L19","v":115.14999999999999}]
["Particulates","Daily mean","10 mg/m3",3.2,0.87,{"$f":"MAX(Particulates!O12:O12)","v":2.7},{"$f":"AVERAGE(Particulates!N10:N13)","v":1.5250000000000001},{"$f":"MAX(Particulates!O13:O15)","v":7},{"$f":"AVERAGE(Particulates!N13:N15)","v":2.5333333333333337},{"$f":"MAX(Particulates!O16:O18)","v":4.2},{"$f":"AVERAGE(Particulates!N16:N18)","v":1.3666666666666665},{"$f":"Particulates!O19","v":7},{"$f":"Particulates!N19","v":1.6166666666666665}]
[null,"½ hourly mean","30 mg/m3 ",10.1,0.93,{"$f":"MAX(Particulates!M10:M12)","v":8.6999999999999993},{"$f":"AVERAGE(Particulates!L10:L12)","v":1.7333333333333334},{"$f":"MAX(Particulates!M13:M15)","v":18.600000000000001},{"$f":"AVERAGE(Particulates!L13:L15)","v":2.6},{"$f":"MAX(Particulates!M16:M18)","v":10.3},{"$f":"AVERAGE(Particulates!L16:L18)","v":1.4333333333333333},{"$f":"Particulates!M19","v":18.600000000000001},{"$f":"Particulates!L19","v":1.675}]
["Total Organic Carbon ","Daily mean","10 mg/m3 ",{"$f":"MAX(TOC!O7:O9)","v":2.5},{"$f":"AVERAGE(TOC!L7:L9)","v":0.46666666666666662},{"$f":"MAX(TOC!O10:O12)","v":1.1000000000000001},{"$f":"AVERAGE(TOC!L10:L12)","v":0.53333333333333333},{"$f":"MAX(TOC!O13:O15)","v":0.8},{"$f":"AVERAGE(TOC!L13:L15)","v":0.56666666666666676},{"$f":"MAX(TOC!O16:O18)","v":0.8},{"$f":"AVERAGE(TOC!L16:L19)","v":0.4770833333333333},{"$f":"TOC!O19","v":2.5},{"$f":"TOC!L19","v":0.5083333333333333}]
[null,"½ hourly mean","20 mg/m3 ",{"$f":"MAX(TOC!M7:M9)","v":7.3},{"$f":"AVERAGE(TOC!L7:L9)","v":0.46666666666666662},{"$f":"MAX(TOC!M10:M12)","v":14.7},{"$f":"AVERAGE(TOC!L10:L12)","v":0.53333333333333333},{"$f":"MAX(TOC!M13:M15)","v":13.3},{"$f":"AVERAGE(TOC!L13:L15)","v":0.56666666666666676},{"$f":"MAX(TOC!M16:M18)","v":14.1},{"$f":"AVERAGE(TOC!L16:L18)","v":0.46666666666666662},{"$f":"TOC!M19","v":14.7},{"$f":"TOC!L19","v":0.5083333333333333}]
["Hydrogen chloride ","Daily mean","10 mg/m3 ",{"$f":"MAX(HCl!O7:O9)","v":7.9},{"$f":"AVERAGE(HCl!N7:N9)","v":6.333333333333333},{"$f":"MAX(HCl!O10:O12)","v":8.1},{"$f":"AVERAGE(HCl!N10:N12)","v":6.2333333333333334},{"$f":"MAX(HCl!O13:O15)","v":9},{"$f":"AVERAGE(HCl!N13:N15)","v":6.3999999999999995},{"$f":"MAX(HCl!O16:O18)","v":7.7},{"$f":"AVERAGE(HCl!N16:N18)","v":5.0666666666666673},{"$f":"HCl!O19","v":9},{"$f":"HCl!N19","v":6.0083333333333337}]
[null,"½ hourly mean","60 mg/m3 ",{"$f":"MAX(HCl!M7:M9)","v":23.5},{"$f":"AVERAGE(HCl!L7:L9)","v":6.333333333333333},{"$f":"MAX(HCl!M10:M12)","v":13.6},{"$f":"AVERAGE(HCl!L10:L12)","v":6.2333333333333334},{"$f":"MAX(HCl!M13:M15)","v":15.6},{"$f":"AVERAGE(HCl!L13:L15)","v":6.3666666666666671},{"$f":"MAX(HCl!M16:M18)","v":25.1},{"$f":"AVERAGE(HCl!L16:L18)","v":5.1333333333333337},{"$f":"HCl!M19","v":25.1},{"$f":"HCl!L19","v":6.0166666666666666}]
["Sulphur dioxide","Daily mean","50 mg/m3 ",{"$f":"MAX('SO2'!O7:O9)","v":33.799999999999997},{"$f":"AVERAGE('SO2'!N7:N9)","v":27.166666666666668},{"$f":"MAX('SO2'!O10:O12)","v":34.200000000000003},{"$f":"AVERAGE('SO2'!N10:N12)","v":28.833333333333332},{"$f":"MAX('SO2'!O13:O15)","v":34.4},{"$f":"AVERAGE('SO2'!N13:N15)","v":24.666666666666668},{"$f":"MAX('SO2'!O16:O18)","v":30.4},{"$f":"AVERAGE('SO2'!N16:N18)","v":19.833333333333332},{"$f":"'SO2'!O19","v":34.4},{"$f":"'SO2'!N19","v":25.125}]
[null,"½ hourly mean","200 mg/m3 ",{"$f":"MAX('SO2'!M7:M9)","v":182.5},{"$f":"AVERAGE('SO2'!L7:L9)","v":27.233333333333331},{"$f":"MAX('SO2'!M10:M12)","v":99.2},{"$f":"AVERAGE('SO2'!L10:L12)","v":28.533333333333331},{"$f":"MAX('SO2'!M13:M15)","v":127.4},{"$f":"AVERAGE('SO2'!L13:L15)","v":24.633333333333336},{"$f":"MAX('SO2'!M16:M18)","v":182.3},{"$f":"AVERAGE('SO2'!L16:L18)","v":19.866666666666664},{"$f":"'SO2'!M19","v":182.5},{"$f":"'SO2'!L19","v":25.066666666666663}]
["Carbon monoxide ","Daily mean","50 mg/m3 ",3.5,0.8,{"$f":"MAX('CO 95% 10 min'!Q10:Q12)","v":5.8},{"$f":"AVERAGE('CO 95% 10 min'!P10:P12)","v":2.3666666666666667},{"$f":"MAX('CO 95% 10 min'!Q13:Q15)","v":4.9000000000000004},{"$f":"AVERAGE('CO 95% 10 min'!P13:P15)","v":2.3666666666666667},{"$f":"MAX('CO 95% 10 min'!Q16:Q18)","v":10.199999999999999},{"$f":"AVERAGE('CO 95% 10 min'!P16:P18)","v":2.4333333333333331},{"$f":"'CO 95% 10 min'!Q19","v":10.199999999999999},{"$f":"'CO 95% 10 min'!P19","v":1.9916666666666669}]
[null,"½ hourly mean *","100 mg/m3 *",{"$f":"MAX(#REF!)","v":{"$error":"#REF!"}},{"$f":"AVERAGE(#REF!)","v":{"$error":"#REF!"}},{"$f":"MAX(#REF!)","v":{"$error":"#REF!"}},{"$f":"AVERAGE(#REF!)","v":{"$error":"#REF!"}},{"$f":"MAX(#REF!)","v":{"$error":"#REF!"}},{"$f":"AVERAGE(#REF!)","v":{"$error":"#REF!"}},{"$f":"MAX(#REF!)","v":{"$error":"#REF!"}},{"$f":"AVERAGE(#REF!)","v":{"$error":"#REF!"}},{"$f":"#REF!","v":{"$error":"#REF!"}},{"$f":"#REF!","v":{"$error":"#REF!"}},"n/a"]
[null,"95%ile 10-min avg *","150 mg/m3 *",6.07,0.83,{"$f":"MAX('CO 95% 10 min'!M10:M12)","v":11},{"$f":"AVERAGE('CO 95% 10 min'!N10:N12)","v":2.4},{"$f":"MAX('CO 95% 10 min'!M13:M15)","v":8.6},{"$f":"AVERAGE('CO 95% 10 min'!N13:N15)","v":2.4666666666666663},{"$f":"MAX('CO 95% 10 min'!M16:M18)","v":16.5},{"$f":"AVERAGE('CO 95% 10 min'!N16:N18)","v":2.4333333333333331},{"$f":"'CO 95% 10 min'!M19","v":8.6166666666666671},{"$f":"'CO 95% 10 min'!N19","v":2.0333333333333337}]
[" Ammonia","Daily mean","No limit set",{"$f":"MAX('NH3'!O7:O9)","v":6.1},{"$f":"AVERAGE('NH3'!N7:N9)","v":1.2666666666666668},{"$f":"MAX('NH3'!O10-O12)","v":7.3},{"$f":"AVERAGE('NH3'!N10:N12)","v":2.2333333333333334},{"$f":"MAX('NH3'!O13:O15)","v":5.7},{"$f":"AVERAGE('NH3'!N13:N15)","v":2.0666666666666669},{"$f":"MAX('NH3'!O16:O18)","v":9.1},{"$f":"AVERAGE('NH3'!N16:N18)","v":3.3333333333333335},{"$f":"'NH3'!O19","v":9.1},{"$f":"'NH3'!N19","v":2.2250000000000001}]
["* = delete or amend as appropriate"]
["Comments :"]
["1/2 hourly mean for CO not applicable"]

{"sheet":"NOx","index":15,"n_rows":79,"n_cols":17,"rows_kept":79,"cut":false,"hidden":false,"merged":[[3,16,7,18],[9,16,11,18],[12,16,15,18],[66,9,78,9],[4,1,4,3],[4,4,4,6],[4,9,4,14],[6,9,18,9],[21,9,33,9],[36,9,48,9],[47,0,47,6],[48,0,51,6],[51,9,63,9]]}
[{"$f":"+'Cover Page'!$B$29","v":"Annual Performance Report 2022"},null,null,null,{"$f":"+'Cover Page'!$B$33","v":"Peterborough Energy Recovery Facility"}]
[]
["Monitoring of Oxides of Nitrogen emissions",null,null,"Whole Installation",null,null,"See  Notes in Cell Q3",null,null,{"$f":"+A3","v":"Monitoring of Oxides of Nitrogen emissions"},null,null,null,"Per Combustion Line",null,null,"Notes:"]
[null,null,null,null,null,null,null,null,null,null,null,null,null,null,null,null,"User to add logic to complete Whole installation, Table A5:G18. From the data in Per Combustion Line, Table J6:O79, subject to No. of lines installed"]
["mg/Nm3","1/2 Hourly Reference Periods",null,null,"Daily Reference Periods"]
[{"$f":"+'Cover Page'!C39","v":2022},"1/2 hourly NOx ELV","Monthly 1/2 hourly mean","Highest 1/2 hourly maximum","Daily NOx ELV","Monthly daily mean","Highest daily maximum",null,null,{"$f":"+A6","v":2022},"mg/Nm3","Monthly 1/2 hourly mean","Monthly 1/2 hourly maximum","Monthly daily mean","Monthly daily maximum"]
["Jan",400,{"$f":"L7","v":115},{"$f":"M7","v":138.4},200,{"$f":"N7","v":114.9},{"$f":"O7","v":116.8},null,null,"A1","Jan",115,138.4,114.9,116.8]
["Feb",400,{"$f":"L8","v":114.7},{"$f":"M8","v":129.19999999999999},200,{"$f":"N8","v":114.7},{"$f":"O8","v":112.7},null,null,null,"Feb",114.7,129.19999999999999,114.7,112.7]
["Mar",400,112.7,167.9,200,112.7,124.9,null,null,null,"Mar",112.7,167.9,112.7,124.9,null,"Whole Installation table A5:G18:"]
["Apr",400,115.3,142.30000000000001,200,115.3,116.4,null,null,null,"Apr",115.3,142.30000000000001,115.3,116.4,null,"Mean: for 1/2 hourly and daily periods calculate mean of values across all operational combustion lines for the month"]
["May",400,115.5,130.9,200,115.4,116.4,null,null,null,"May",115.5,130.9,115.4,116.4]
["Jun",400,115.5,135.30000000000001,200,115.5,116.4,null,null,null,"Jun",115.5,135.30000000000001,115.5,116.4]
["Jul",400,115.8,135,200,115.8,116.4,null,null,null,"Jul",115.8,135,115.8,116.4,null,"Maximum: for 1/2 hourly and daily periods use the highest value across all operational combustion lines for the month"]
["Aug",400,115.7,149.19999999999999,200,115.7,116.8,null,null,null,"Aug",115.7,149.19999999999999,115.7,116.8]
["Sep",400,115.6,220.8,200,115.5,118.7,null,null,null,"Sep",115.6,220.8,115.5,118.7]
["Oct",400,113.9,132.9,200,114.1,116.9,null,null,null,"Oct",113.9,132.9,114.1,116.9]
["Nov",400,115,159.5,200,115.1,117.9,null,null,null,"Nov",115,159.5,115.1,117.9]
["Dec",400,117.1,195.4,200,117.1,125.2,null,null,null,"Dec",117.1,195.4,117.1,125.2]
[null,null,null,null,null,null,null,null,null,null,"Annual",{"$f":"AVERAGE(L7:L18)","v":115.14999999999999},{"$f":"MAX(M7:M18)","v":220.8},{"$f":"AVERAGE(N7:N18)","v":115.14999999999998},{"$f":"MAX(O7:O18)","v":125.2}]
[]
[null,null,null,null,null,null,null,null,null,{"$f":"+A6","v":2022},"mg/Nm3","Monthly 1/2 hourly mean","Monthly 1/2 hourly maximum","Monthly daily mean","Monthly daily maximum"]
[null,null,null,null,null,null,null,null,null,"A2","Jan"]
[null,null,null,null,null,null,null,null,null,null,"Feb"]
[null,null,null,null,null,null,null,null,null,null,"Mar"]
[null,null,null,null,null,null,null,null,null,null,"Apr"]
[null,null,null,null,null,null,null,null,null,null,"May"]
[null,null,null,null,null,null,null,null,null,null,"Jun"]
[null,null,null,null,null,null,null,null,null,null,"Jul"]
[null,null,null,null,null,null,null,null,null,null,"Aug"]
[null,null,null,null,null,null,null,null,null,null,"Sep"]
[null,null,null,null,null,null,null,null,null,null,"Oct"]
[null,null,null,null,null,null,null,null,null,null,"Nov"]
[null,null,null,null,null,null,null,null,null,null,"Dec"]
[null,null,null,null,null,null,null,null,null,null,"Annual",{"$f":"AVERAGE(L22:L33)","v":{"$error":"#DIV/0!"}},{"$f":"MAX(M22:M33)","v":0},{"$f":"AVERAGE(N22:N33)","v":{"$error":"#DIV/0!"}},{"$f":"MAX(O22:O33)","v":0}]
[]
[null,null,null,null,null,null,null,null,null,{"$f":"+A6","v":2022},"mg/Nm3","Monthly 1/2 hourly mean","Monthly 1/2 hourly maximum","Monthly daily mean","Monthly daily maximum"]
[null,null,null,null,null,null,null,null,null,"A3","Jan"]
[null,null,null,null,null,null,null,null,null,null,"Feb"]
[null,null,null,null,null,null,null,null,null,null,"Mar"]
[null,null,null,null,null,null,null,null,null,null,"Apr"]
[null,null,null,null,null,null,null,null,null,null,"May"]
[null,null,null,null,null,null,null,null,null,null,"Jun"]
[null,null,null,null,null,null,null,null,null,null,"Jul"]
[null,null,null,null,null,null,null,null,null,null,"Aug"]
[null,null,null,null,null,null,null,null,null,null,"Sep"]
[null,null,null,null,null,null,null,null,null,null,"Oct"]
[null,null,null,null,null,null,null,null,null,null,"Nov"]
["Comments :",null,null,null,null,null,null,null,null,null,"Dec"]
[null,null,null,null,null,null,null,null,null,null,"Annual",{"$f":"AVERAGE(L37:L48)","v":{"$error":"#DIV/0!"}},{"$f":"MAX(M37:M48)","v":0},{"$f":"AVERAGE(N37:N48)","v":{"$error":"#DIV/0!"}},{"$f":"MAX(O37:O48)","v":0}]
[]
[null,null,null,null,null,null,null,null,null,{"$f":"+A6","v":2022},"mg/Nm3","Monthly 1/2 hourly mean","Monthly 1/2 hourly maximum","Monthly daily mean","Monthly daily maximum"]
[null,null,null,null,null,null,null,null,null,"A4","Jan"]
[null,null,null,null,null,null,null,null,null,null,"Feb"]
[null,null,null,null,null,null,null,null,null,null,"Mar"]
[null,null,null,null,null,null,null,null,null,null,"Apr"]
[null,null,null,null,null,null,null,null,null,null,"May"]
[null,null,null,null,null,null,null,null,null,null,"Jun"]
[null,null,null,null,null,null,null,null,null,null,"Jul"]
[null,null,null,null,null,null,null,null,null,null,"Aug"]
[null,null,null,null,null,null,null,null,null,null,"Sep"]
[null,null,null,null,null,null,null,null,null,null,"Oct"]
[null,null,null,null,null,null,null,null,null,null,"Nov"]
[null,null,null,null,null,null,null,null,null,null,"Dec"]
[null,null,null,null,null,null,null,null,null,null,"Annual",{"$f":"AVERAGE(L52:L63)","v":{"$error":"#DIV/0!"}},{"$f":"MAX(M52:M63)","v":0},{"$f":"AVERAGE(N52:N63)","v":{"$error":"#DIV/0!"}},{"$f":"MAX(O52:O63)","v":0}]
[]
[null,null,null,null,null,null,null,null,null,{"$f":"+A6","v":2022},"mg/Nm3","Monthly 1/2 hourly mean","Monthly 1/2 hourly maximum","Monthly daily mean","Monthly daily maximum"]
[null,null,null,null,null,null,null,null,null,"A5","Jan"]
[null,null,null,null,null,null,null,null,null,null,"Feb"]
[null,null,null,null,null,null,null,null,null,null,"Mar"]
[null,null,null,null,null,null,null,null,null,null,"Apr"]
[null,null,null,null,null,null,null,null,null,null,"May"]
[null,null,null,null,null,null,null,null,null,null,"Jun"]
[null,null,null,null,null,null,null,null,null,null,"Jul"]
[null,null,null,null,null,null,null,null,null,null,"Aug"]
[null,null,null,null,null,null,null,null,null,null,"Sep"]
[null,null,null,null,null,null,null,null,null,null,"Oct"]
[null,null,null,null,null,null,null,null,null,null,"Nov"]
[null,null,null,null,null,null,null,null,null,null,"Dec"]
[null,null,null,null,null,null,null,null,null,null,"Annual",{"$f":"AVERAGE(L67:L78)","v":{"$error":"#DIV/0!"}},{"$f":"MAX(M67:M78)","v":0},{"$f":"AVERAGE(N67:N78)","v":{"$error":"#DIV/0!"}},{"$f":"MAX(O67:O78)","v":0}]

{"sheet":"CO 95% 10 min","index":16,"n_rows":79,"n_cols":19,"rows_kept":79,"cut":false,"hidden":false,"merged":[[3,18,7,20],[9,18,11,20],[12,18,15,20],[66,10,78,10],[4,1,4,4],[4,5,4,7],[4,10,4,16],[6,10,18,10],[21,10,33,10],[36,10,48,10],[47,0,47,7],[48,0,51,7],[51,10,63,10]]}
[{"$f":"+'Cover Page'!$B$29","v":"Annual Performance Report 2022"},null,null,null,{"$f":"+'Cover Page'!$B$33","v":"Peterborough Energy Recovery Facility"}]
[]
["Monitoring of Carbon Monoxide (10-minute avg)",null,null,null,"Whole Installation",null,null,"See  Notes in Cell S3",null,{"$f":"+A3","v":"Monitoring of Carbon Monoxide (10-minute avg)"},null,null,null,null,"Per Combustion Line",null,"Notes:",null,"Notes:"]
[null,null,null,null,null,null,null,null,null,null,null,null,null,null,null,null,null,null,"User to add logic to complete Whole installation, Table A5:H18. From the data in Per Combustion Line, Table K6:Q79, subject to No. of lines installed"]
["mg/Nm3","10-minute Reference Periods",null,null,null,"Daily Reference Periods"]
[{"$f":"+'Cover Page'!C39","v":2022},"95%ile 10-min avg CO ELV","95%ile 10-min avg maximum","Monthly CO 10-min avg mean","10-min avg maximum","Daily CO ELV","Monthly daily mean","Highest daily maximum",null,null,{"$f":"+A6","v":2022},"mg/Nm3","95%ile 10-min avg maximum","Monthly CO 10-min avg mean","10-min avg maximum","Monthly daily mean","Monthly daily maximum"]
["Jan",150,{"$f":"M7","v":6.3},{"$f":"N7","v":0.1},{"$f":"O7","v":236.3},50,{"$f":"P7","v":0.1},{"$f":"Q7","v":1.6},null,null,"A1","Jan",6.3,0.1,236.3,0.1,1.6]
["Feb",{"$f":"+B7","v":150},{"$f":"M8","v":5.8},{"$f":"N8","v":0.2},{"$f":"O8","v":168.3},{"$f":"+F7","v":50},{"$f":"P8","v":0.1},{"$f":"Q8","v":1.2},null,null,null,"Feb",5.8,0.2,168.3,0.1,1.2]
["Mar",{"$f":"+B8","v":150},6.1,2.2000000000000002,195.3,{"$f":"+F8","v":50},2.2000000000000002,3.5,null,null,null,"Mar",6.1,2.2000000000000002,195.3,2.2000000000000002,3.5,null,"Whole Installation table A5:H18:"]
["Apr",150,11,2.4,136.19999999999999,50,2.2999999999999998,3.6,null,null,null,"Apr",11,2.4,136.19999999999999,2.2999999999999998,3.6,null,"Mean: for 10-min and daily periods use average of all operational combustion lines."]
["May",150,6.9,2.4,414.8,50,2.4,5.8,null,null,null,"May",6.9,2.4,414.8,2.4,5.8]
["Jun",150,10,2.4,178.8,50,2.4,3.6,null,null,null,"Jun",10,2.4,178.8,2.4,3.6]
["Jul",150,5.2,2.5,246.3,50,2.4,3.7,null,null,null,"Jul",5.2,2.5,246.3,2.4,3.7,null,"Maximum: for 10-min and daily periods use the highest of all operational combustion lines in any month."]
["Aug",150,7.2,2.6,404.2,50,2.4,4.9000000000000004,null,null,null,"Aug",7.2,2.6,404.2,2.4,4.9000000000000004]
["Sep",150,8.6,2.2999999999999998,239.3,50,2.2999999999999998,4,null,null,null,"Sep",8.6,2.2999999999999998,239.3,2.2999999999999998,4]
["Oct",150,12.8,2.1,147.5,50,2.1,3.6,null,null,null,"Oct",12.8,2.1,147.5,2.1,3.6]
["Nov",150,16.5,2.4,117.7,50,2.4,4.3,null,null,null,"Nov",16.5,2.4,117.7,2.4,4.3]
["Dec",150,7,2.8,439.4,50,2.8,10.199999999999999,null,null,null,"Dec",7,2.8,439.4,2.8,10.199999999999999]
[null,null,null,null,null,null,null,null,null,null,null,"Annual",{"$f":"AVERAGE(M7:M18)","v":8.6166666666666671},{"$f":"AVERAGE(N7:N18)","v":2.0333333333333337},{"$f":"MAX(O7:O18)","v":439.4},{"$f":"AVERAGE(P7:P18)","v":1.9916666666666669},{"$f":"MAX(Q7:Q18)","v":10.199999999999999}]
[]
[null,null,null,null,null,null,null,null,null,null,{"$f":"+A6","v":2022},"mg/Nm3","95%ile 10-min avg maximum","Monthly CO 10-min avg mean","10-min avg maximum","Monthly daily mean","Monthly daily maximum"]
[null,null,null,null,null,null,null,null,null,null,"A2","Jan"]
[null,null,null,null,null,null,null,null,null,null,null,"Feb"]
[null,null,null,null,null,null,null,null,null,null,null,"Mar"]
[null,null,null,null,null,null,null,null,null,null,null,"Apr"]
[null,null,null,null,null,null,null,null,null,null,null,"May"]
[null,null,null,null,null,null,null,null,null,null,null,"Jun"]
[null,null,null,null,null,null,null,null,null,null,null,"Jul"]
[null,null,null,null,null,null,null,null,null,null,null,"Aug"]
[null,null,null,null,null,null,null,null,null,null,null,"Sep"]
[null,null,null,null,null,null,null,null,null,null,null,"Oct"]
[null,null,null,null,null,null,null,null,null,null,null,"Nov"]
[null,null,null,null,null,null,null,null,null,null,null,"Dec"]
[null,null,null,null,null,null,null,null,null,null,null,"Annual",{"$f":"AVERAGE(M22:M33)","v":{"$error":"#DIV/0!"}},null,{"$f":"MAX(O22:O33)","v":0},{"$f":"AVERAGE(P22:P33)","v":{"$error":"#DIV/0!"}},{"$f":"MAX(Q22:Q33)","v":0}]
[]
[null,null,null,null,null,null,null,null,null,null,{"$f":"+A6","v":2022},"mg/Nm3","95%ile 10-min avg maximum","Monthly CO 10-min avg mean","10-min avg maximum","Monthly daily mean","Monthly daily maximum"]
[null,null,null,null,null,null,null,null,null,null,"A3","Jan"]
[null,null,null,null,null,null,null,null,null,null,null,"Feb"]
[null,null,null,null,null,null,null,null,null,null,null,"Mar"]
[null,null,null,null,null,null,null,null,null,null,null,"Apr"]
[null,null,null,null,null,null,null,null,null,null,null,"May"]
[null,null,null,null,null,null,null,null,null,null,null,"Jun"]
[null,null,null,null,null,null,null,null,null,null,null,"Jul"]
[null,null,null,null,null,null,null,null,null,null,null,"Aug"]
[null,null,null,null,null,null,null,null,null,null,null,"Sep"]
[null,null,null,null,null,null,null,null,null,null,null,"Oct"]
[null,null,null,null,null,null,null,null,null,null,null,"Nov"]
["Comments :",null,null,null,null,null,null,null,null,null,null,"Dec"]
["Environment Agency explanatory note: The 10-minute average ELV is based on the “95th percentile”. In this case this means that 95% of the 10 minute averages in the relevant 24-hour period (i.e. 137) must be below 150 mg/Nm3, and 5% (i.e. 7) are allowed to be any value above 150 mg/Nm3. Whilst we expect operators to minimise CO emissions at all times, it is perfectly acceptable for the value of the maximum 10-minute average to be above 150 mg/Nm3, provided the 95th percentile ELV has been met for that period. ",null,null,null,null,null,null,null,null,null,null,"Annual",{"$f":"AVERAGE(M37:M48)","v":{"$error":"#DIV/0!"}},null,{"$f":"MAX(O37:O48)","v":0},{"$f":"AVERAGE(P37:P48)","v":{"$error":"#DIV/0!"}},{"$f":"MAX(Q37:Q48)","v":0}]
[]
[null,null,null,null,null,null,null,null,null,null,{"$f":"+A6","v":2022},"mg/Nm3","95%ile 10-min avg maximum","Monthly CO 10-min avg mean","10-min avg maximum","Monthly daily mean","Monthly daily maximum"]
[null,null,null,null,null,null,null,null,null,null,"A4","Jan"]
[null,null,null,null,null,null,null,null,null,null,null,"Feb"]
[null,null,null,null,null,null,null,null,null,null,null,"Mar"]
[null,null,null,null,null,null,null,null,null,null,null,"Apr"]
[null,null,null,null,null,null,null,null,null,null,null,"May"]
[null,null,null,null,null,null,null,null,null,null,null,"Jun"]
[null,null,null,null,null,null,null,null,null,null,null,"Jul"]
[null,null,null,null,null,null,null,null,null,null,null,"Aug"]
[null,null,null,null,null,null,null,null,null,null,null,"Sep"]
[null,null,null,null,null,null,null,null,null,null,null,"Oct"]
[null,null,null,null,null,null,null,null,null,null,null,"Nov"]
[null,null,null,null,null,null,null,null,null,null,null,"Dec"]
[null,null,null,null,null,null,null,null,null,null,null,"Annual",{"$f":"AVERAGE(M52:M63)","v":{"$error":"#DIV/0!"}},null,{"$f":"MAX(O52:O63)","v":0},{"$f":"AVERAGE(P52:P63)","v":{"$error":"#DIV/0!"}},{"$f":"MAX(Q52:Q63)","v":0}]
[]
[null,null,null,null,null,null,null,null,null,null,{"$f":"+A6","v":2022},"mg/Nm3","95%ile 10-min avg maximum","Monthly CO 10-min avg mean","10-min avg maximum","Monthly daily mean","Monthly daily maximum"]
[null,null,null,null,null,null,null,null,null,null,"A5","Jan"]
[null,null,null,null,null,null,null,null,null,null,null,"Feb"]
[null,null,null,null,null,null,null,null,null,null,null,"Mar"]
[null,null,null,null,null,null,null,null,null,null,null,"Apr"]
[null,null,null,null,null,null,null,null,null,null,null,"May"]
[null,null,null,null,null,null,null,null,null,null,null,"Jun"]
[null,null,null,null,null,null,null,null,null,null,null,"Jul"]
[null,null,null,null,null,null,null,null,null,null,null,"Aug"]
[null,null,null,null,null,null,null,null,null,null,null,"Sep"]
[null,null,null,null,null,null,null,null,null,null,null,"Oct"]
[null,null,null,null,null,null,null,null,null,null,null,"Nov"]
[null,null,null,null,null,null,null,null,null,null,null,"Dec"]
[null,null,null,null,null,null,null,null,null,null,null,"Annual",{"$f":"AVERAGE(M67:M78)","v":{"$error":"#DIV/0!"}},null,{"$f":"MAX(O67:O78)","v":0},{"$f":"AVERAGE(P67:P78)","v":{"$error":"#DIV/0!"}},{"$f":"MAX(Q67:Q78)","v":0}]

{"sheet":"HCl","index":17,"n_rows":79,"n_cols":17,"rows_kept":79,"cut":false,"hidden":false,"merged":[[12,16,15,18],[51,9,63,9],[66,9,78,9],[4,9,4,14],[4,1,4,3],[4,4,4,6],[48,0,51,6],[47,0,47,6],[6,9,18,9],[21,9,33,9],[36,9,48,9],[3,16,7,18],[9,16,11,18]]}
[{"$f":"+'Cover Page'!$B$29","v":"Annual Performance Report 2022"},null,null,null,{"$f":"+'Cover Page'!$B$33","v":"Peterborough Energy Recovery Facility"}]
[]
["Monitoring of Hydrogen Chloride emissions",null,null,"Whole Installation",null,null,"See  Notes in Cell Q3",null,null,{"$f":"+A3","v":"Monitoring of Hydrogen Chloride emissions"},null,null,null,"Per Combustion Line",null,null,"Notes:"]
[null,null,null,null,null,null,null,null,null,null,null,null,null,null,null,null,"User to add logic to complete Whole installation, Table A5:G18. From the data in Per Combustion Line, Table J6:O79, subject to No. of lines installed"]
["mg/Nm3","1/2 Hourly Reference Periods",null,null,"Daily Reference Periods"]
[{"$f":"+'Cover Page'!C39","v":2022},"1/2 hourly HCl ELV","Monthly 1/2 hourly mean","Highest 1/2 hourly maximum","Daily HCl ELV","Monthly daily mean","Highest daily maximum",null,null,{"$f":"+A6","v":2022},"mg/Nm3","Monthly 1/2 hourly mean","Monthly 1/2 hourly maximum","Monthly daily mean","Monthly daily maximum"]
["Jan",60,{"$f":"L7","v":6.8},{"$f":"M7","v":13.8},10,{"$f":"N7","v":6.8},{"$f":"O7","v":7.9},null,null,"A1","Jan",6.8,13.8,6.8,7.9]
["Feb",60,{"$f":"L8","v":6.9},{"$f":"M8","v":12.7},10,{"$f":"N8","v":6.9},{"$f":"O8","v":7.7},null,null,null,"Feb",6.9,12.7,6.9,7.7]
["Mar",60,5.3,23.5,10,5.3,6.7,null,null,null,"Mar",5.3,23.5,5.3,6.7,null,"Whole Installation table A5:G18:"]
["Apr",60,6.1,13.1,10,6.1,8.1,null,null,null,"Apr",6.1,13.1,6.1,8.1,null,"Mean: for 1/2 hourly and daily periods calculate mean of values across all operational combustion lines for the month"]
["May",60,6,13.6,10,6,7.4,null,null,null,"May",6,13.6,6,7.4]
["Jun",60,6.6,12,10,6.6,8,null,null,null,"Jun",6.6,12,6.6,8]
["Jul",60,7.1,13.2,10,7,7.6,null,null,null,"Jul",7.1,13.2,7,7.6,null,"Maximum: for 1/2 hourly and daily periods use the highest value across all operational combustion lines for the month"]
["Aug",60,5.6,13.7,10,5.9,7.4,null,null,null,"Aug",5.6,13.7,5.9,7.4]
["Sep",60,6.4,15.6,10,6.3,9,null,null,null,"Sep",6.4,15.6,6.3,9]
["Oct",60,5.2,13.4,10,5.0999999999999996,7.7,null,null,null,"Oct",5.2,13.4,5.0999999999999996,7.7]
["Nov",60,4.2,25.1,10,4.2,6.1,null,null,null,"Nov",4.2,25.1,4.2,6.1]
["Dec",60,6,13.6,10,5.9,7.4,null,null,null,"Dec",6,13.6,5.9,7.4]
[null,null,null,null,null,null,null,null,null,null,"Annual",{"$f":"AVERAGE(L7:L18)","v":6.0166666666666666},{"$f":"MAX(M7:M18)","v":25.1},{"$f":"AVERAGE(N7:N18)","v":6.0083333333333337},{"$f":"MAX(O7:O18)","v":9}]
[]
[null,null,null,null,null,null,null,null,null,{"$f":"+A6","v":2022},"mg/Nm3","Monthly 1/2 hourly mean","Monthly 1/2 hourly maximum","Monthly daily mean","Monthly daily maximum"]
[null,null,null,null,null,null,null,null,null,"A2","Jan"]
[null,null,null,null,null,null,null,null,null,null,"Feb"]
[null,null,null,null,null,null,null,null,null,null,"Mar"]
[null,null,null,null,null,null,null,null,null,null,"Apr"]
[null,null,null,null,null,null,null,null,null,null,"May"]
[null,null,null,null,null,null,null,null,null,null,"Jun"]
[null,null,null,null,null,null,null,null,null,null,"Jul"]
[null,null,null,null,null,null,null,null,null,null,"Aug"]
[null,null,null,null,null,null,null,null,null,null,"Sep"]
[null,null,null,null,null,null,null,null,null,null,"Oct"]
[null,null,null,null,null,null,null,null,null,null,"Nov"]
[null,null,null,null,null,null,null,null,null,null,"Dec"]
[null,null,null,null,null,null,null,null,null,null,"Annual",{"$f":"AVERAGE(L22:L33)","v":{"$error":"#DIV/0!"}},{"$f":"MAX(M22:M33)","v":0},{"$f":"AVERAGE(N22:N33)","v":{"$error":"#DIV/0!"}},{"$f":"MAX(O22:O33)","v":0}]
[]
[null,null,null,null,null,null,null,null,null,{"$f":"+A6","v":2022},"mg/Nm3","Monthly 1/2 hourly mean","Monthly 1/2 hourly maximum","Monthly daily mean","Monthly daily maximum"]
[null,null,null,null,null,null,null,null,null,"A3","Jan"]
[null,null,null,null,null,null,null,null,null,null,"Feb"]
[null,null,null,null,null,null,null,null,null,null,"Mar"]
[null,null,null,null,null,null,null,null,null,null,"Apr"]
[null,null,null,null,null,null,null,null,null,null,"May"]
[null,null,null,null,null,null,null,null,null,null,"Jun"]
[null,null,null,null,null,null,null,null,null,null,"Jul"]
[null,null,null,null,null,null,null,null,null,null,"Aug"]
[null,null,null,null,null,null,null,null,null,null,"Sep"]
[null,null,null,null,null,null,null,null,null,null,"Oct"]
[null,null,null,null,null,null,null,null,null,null,"Nov"]
["Comments :",null,null,null,null,null,null,null,null,null,"Dec"]
[null,null,null,null,null,null,null,null,null,null,"Annual",{"$f":"AVERAGE(L37:L48)","v":{"$error":"#DIV/0!"}},{"$f":"MAX(M37:M48)","v":0},{"$f":"AVERAGE(N37:N48)","v":{"$error":"#DIV/0!"}},{"$f":"MAX(O37:O48)","v":0}]
[]
[null,null,null,null,null,null,null,null,null,{"$f":"+A6","v":2022},"mg/Nm3","Monthly 1/2 hourly mean","Monthly 1/2 hourly maximum","Monthly daily mean","Monthly daily maximum"]
[null,null,null,null,null,null,null,null,null,"A4","Jan"]
[null,null,null,null,null,null,null,null,null,null,"Feb"]
[null,null,null,null,null,null,null,null,null,null,"Mar"]
[null,null,null,null,null,null,null,null,null,null,"Apr"]
[null,null,null,null,null,null,null,null,null,null,"May"]
[null,null,null,null,null,null,null,null,null,null,"Jun"]
[null,null,null,null,null,null,null,null,null,null,"Jul"]
[null,null,null,null,null,null,null,null,null,null,"Aug"]
[null,null,null,null,null,null,null,null,null,null,"Sep"]
[null,null,null,null,null,null,null,null,null,null,"Oct"]
[null,null,null,null,null,null,null,null,null,null,"Nov"]
[null,null,null,null,null,null,null,null,null,null,"Dec"]
[null,null,null,null,null,null,null,null,null,null,"Annual",{"$f":"AVERAGE(L52:L63)","v":{"$error":"#DIV/0!"}},{"$f":"MAX(M52:M63)","v":0},{"$f":"AVERAGE(N52:N63)","v":{"$error":"#DIV/0!"}},{"$f":"MAX(O52:O63)","v":0}]
[]
[null,null,null,null,null,null,null,null,null,{"$f":"+A6","v":2022},"mg/Nm3","Monthly 1/2 hourly mean","Monthly 1/2 hourly maximum","Monthly daily mean","Monthly daily maximum"]
[null,null,null,null,null,null,null,null,null,"A5","Jan"]
[null,null,null,null,null,null,null,null,null,null,"Feb"]
[null,null,null,null,null,null,null,null,null,null,"Mar"]
[null,null,null,null,null,null,null,null,null,null,"Apr"]
[null,null,null,null,null,null,null,null,null,null,"May"]
[null,null,null,null,null,null,null,null,null,null,"Jun"]
[null,null,null,null,null,null,null,null,null,null,"Jul"]
[null,null,null,null,null,null,null,null,null,null,"Aug"]
[null,null,null,null,null,null,null,null,null,null,"Sep"]
[null,null,null,null,null,null,null,null,null,null,"Oct"]
[null,null,null,null,null,null,null,null,null,null,"Nov"]
[null,null,null,null,null,null,null,null,null,null,"Dec"]
[null,null,null,null,null,null,null,null,null,null,"Annual",{"$f":"AVERAGE(L67:L78)","v":{"$error":"#DIV/0!"}},{"$f":"MAX(M67:M78)","v":0},{"$f":"AVERAGE(N67:N78)","v":{"$error":"#DIV/0!"}},{"$f":"MAX(O67:O78)","v":0}]

{"sheet":"SO2","index":18,"n_rows":79,"n_cols":17,"rows_kept":79,"cut":false,"hidden":false,"merged":[[3,16,7,18],[9,16,11,18],[12,16,15,18],[66,9,78,9],[4,1,4,3],[4,4,4,6],[4,9,4,14],[6,9,18,9],[21,9,33,9],[36,9,48,9],[47,0,47,6],[48,0,51,6],[51,9,63,9]]}
[{"$f":"+'Cover Page'!$B$29","v":"Annual Performance Report 2022"},null,null,null,{"$f":"+'Cover Page'!$B$33","v":"Peterborough Energy Recovery Facility"}]
[]
["Monitoring of Sulphur dioxide emissions",null,null,"Whole Installation",null,null,"See  Notes in Cell Q3",null,null,{"$f":"+A3","v":"Monitoring of Sulphur dioxide emissions"},null,null,null,"Per Combustion Line",null,null,"Notes:"]
[null,null,null,null,null,null,null,null,null,null,null,null,null,null,null,null,"User to add logic to complete Whole installation, Table A5:G18. From the data in Per Combustion Line, Table J6:O79, subject to No. of lines installed"]
["mg/Nm3","1/2 Hourly Reference Periods",null,null,"Daily Reference Periods"]
[{"$f":"+'Cover Page'!C39","v":2022},"1/2 hourly SO2 ELV","Monthly 1/2 hourly mean","Highest 1/2 hourly maximum","Daily SO2 ELV","Monthly daily mean","Highest daily maximum",null,null,{"$f":"+A6","v":2022},"mg/Nm3","Monthly 1/2 hourly mean","Monthly 1/2 hourly maximum","Monthly daily mean","Monthly daily maximum"]
["Jan",200,{"$f":"L7","v":26.2},{"$f":"M7","v":168},50,{"$f":"N7","v":26.1},{"$f":"O7","v":32.299999999999997},null,null,"A1","Jan",26.2,168,26.1,32.299999999999997]
["Feb",200,{"$f":"L8","v":26.9},{"$f":"M8","v":182.5},50,{"$f":"N8","v":26.8},{"$f":"O8","v":31.4},null,null,null,"Feb",26.9,182.5,26.8,31.4]
["Mar",200,28.6,130.19999999999999,50,28.6,33.799999999999997,null,null,null,"Mar",28.6,130.19999999999999,28.6,33.799999999999997,null,"Whole Installation table A5:G18:"]
["Apr",200,28.5,66.2,50,29,34.200000000000003,null,null,null,"Apr",28.5,66.2,29,34.200000000000003,null,"Mean: for 1/2 hourly and daily periods calculate mean of values across all operational combustion lines for the month"]
["May",200,29.6,99.2,50,29.6,33.799999999999997,null,null,null,"May",29.6,99.2,29.6,33.799999999999997]
["Jun",200,27.5,78.5,50,27.9,32.4,null,null,null,"Jun",27.5,78.5,27.9,32.4]
["Jul",200,27.3,127.4,50,27.5,32.200000000000003,null,null,null,"Jul",27.3,127.4,27.5,32.200000000000003,null,"Maximum: for 1/2 hourly and daily periods use the highest value across all operational combustion lines for the month"]
["Aug",200,27.2,109,50,27,34.4,null,null,null,"Aug",27.2,109,27,34.4]
["Sep",200,19.399999999999999,111.9,50,19.5,28.4,null,null,null,"Sep",19.399999999999999,111.9,19.5,28.4]
["Oct",200,18.399999999999999,49.4,50,18.3,30.4,null,null,null,"Oct",18.399999999999999,49.4,18.3,30.4]
["Nov",200,16.7,89.7,50,16.7,25,null,null,null,"Nov",16.7,89.7,16.7,25]
["Dec",200,24.5,182.3,50,24.5,29.9,null,null,null,"Dec",24.5,182.3,24.5,29.9]
[null,null,null,null,null,null,null,null,null,null,"Annual",{"$f":"AVERAGE(L7:L18)","v":25.066666666666663},{"$f":"MAX(M7:M18)","v":182.5},{"$f":"AVERAGE(N7:N18)","v":25.125},{"$f":"MAX(O7:O18)","v":34.4}]
[]
[null,null,null,null,null,null,null,null,null,{"$f":"+A6","v":2022},"mg/Nm3","Monthly 1/2 hourly mean","Monthly 1/2 hourly maximum","Monthly daily mean","Monthly daily maximum"]
[null,null,null,null,null,null,null,null,null,"A2","Jan"]
[null,null,null,null,null,null,null,null,null,null,"Feb"]
[null,null,null,null,null,null,null,null,null,null,"Mar"]
[null,null,null,null,null,null,null,null,null,null,"Apr"]
[null,null,null,null,null,null,null,null,null,null,"May"]
[null,null,null,null,null,null,null,null,null,null,"Jun"]
[null,null,null,null,null,null,null,null,null,null,"Jul"]
[null,null,null,null,null,null,null,null,null,null,"Aug"]
[null,null,null,null,null,null,null,null,null,null,"Sep"]
[null,null,null,null,null,null,null,null,null,null,"Oct"]
[null,null,null,null,null,null,null,null,null,null,"Nov"]
[null,null,null,null,null,null,null,null,null,null,"Dec"]
[null,null,null,null,null,null,null,null,null,null,"Annual",{"$f":"AVERAGE(L22:L33)","v":{"$error":"#DIV/0!"}},{"$f":"MAX(M22:M33)","v":0},{"$f":"AVERAGE(N22:N33)","v":{"$error":"#DIV/0!"}},{"$f":"MAX(O22:O33)","v":0}]
[]
[null,null,null,null,null,null,null,null,null,{"$f":"+A6","v":2022},"mg/Nm3","Monthly 1/2 hourly mean","Monthly 1/2 hourly maximum","Monthly daily mean","Monthly daily maximum"]
[null,null,null,null,null,null,null,null,null,"A3","Jan"]
[null,null,null,null,null,null,null,null,null,null,"Feb"]
[null,null,null,null,null,null,null,null,null,null,"Mar"]
[null,null,null,null,null,null,null,null,null,null,"Apr"]
[null,null,null,null,null,null,null,null,null,null,"May"]
[null,null,null,null,null,null,null,null,null,null,"Jun"]
[null,null,null,null,null,null,null,null,null,null,"Jul"]
[null,null,null,null,null,null,null,null,null,null,"Aug"]
[null,null,null,null,null,null,null,null,null,null,"Sep"]
[null,null,null,null,null,null,null,null,null,null,"Oct"]
[null,null,null,null,null,null,null,null,null,null,"Nov"]
["Comments :",null,null,null,null,null,null,null,null,null,"Dec"]
[null,null,null,null,null,null,null,null,null,null,"Annual",{"$f":"AVERAGE(L37:L48)","v":{"$error":"#DIV/0!"}},{"$f":"MAX(M37:M48)","v":0},{"$f":"AVERAGE(N37:N48)","v":{"$error":"#DIV/0!"}},{"$f":"MAX(O37:O48)","v":0}]
[]
[null,null,null,null,null,null,null,null,null,{"$f":"+A6","v":2022},"mg/Nm3","Monthly 1/2 hourly mean","Monthly 1/2 hourly maximum","Monthly daily mean","Monthly daily maximum"]
[null,null,null,null,null,null,null,null,null,"A4","Jan"]
[null,null,null,null,null,null,null,null,null,null,"Feb"]
[null,null,null,null,null,null,null,null,null,null,"Mar"]
[null,null,null,null,null,null,null,null,null,null,"Apr"]
[null,null,null,null,null,null,null,null,null,null,"May"]
[null,null,null,null,null,null,null,null,null,null,"Jun"]
[null,null,null,null,null,null,null,null,null,null,"Jul"]
[null,null,null,null,null,null,null,null,null,null,"Aug"]
[null,null,null,null,null,null,null,null,null,null,"Sep"]
[null,null,null,null,null,null,null,null,null,null,"Oct"]
[null,null,null,null,null,null,null,null,null,null,"Nov"]
[null,null,null,null,null,null,null,null,null,null,"Dec"]
[null,null,null,null,null,null,null,null,null,null,"Annual",{"$f":"AVERAGE(L52:L63)","v":{"$error":"#DIV/0!"}},{"$f":"MAX(M52:M63)","v":0},{"$f":"AVERAGE(N52:N63)","v":{"$error":"#DIV/0!"}},{"$f":"MAX(O52:O63)","v":0}]
[]
[null,null,null,null,null,null,null,null,null,{"$f":"+A6","v":2022},"mg/Nm3","Monthly 1/2 hourly mean","Monthly 1/2 hourly maximum","Monthly daily mean","Monthly daily maximum"]
[null,null,null,null,null,null,null,null,null,"A5","Jan"]
[null,null,null,null,null,null,null,null,null,null,"Feb"]
[null,null,null,null,null,null,null,null,null,null,"Mar"]
[null,null,null,null,null,null,null,null,null,null,"Apr"]
[null,null,null,null,null,null,null,null,null,null,"May"]
[null,null,null,null,null,null,null,null,null,null,"Jun"]
[null,null,null,null,null,null,null,null,null,null,"Jul"]
[null,null,null,null,null,null,null,null,null,null,"Aug"]
[null,null,null,null,null,null,null,null,null,null,"Sep"]
[null,null,null,null,null,null,null,null,null,null,"Oct"]
[null,null,null,null,null,null,null,null,null,null,"Nov"]
[null,null,null,null,null,null,null,null,null,null,"Dec"]
[null,null,null,null,null,null,null,null,null,null,"Annual",{"$f":"AVERAGE(L67:L78)","v":{"$error":"#DIV/0!"}},{"$f":"MAX(M67:M78)","v":0},{"$f":"AVERAGE(N67:N78)","v":{"$error":"#DIV/0!"}},{"$f":"MAX(O67:O78)","v":0}]

{"sheet":"TOC","index":19,"n_rows":79,"n_cols":17,"rows_kept":79,"cut":false,"hidden":false,"merged":[[3,16,7,18],[9,16,11,18],[12,16,15,18],[66,9,78,9],[4,1,4,3],[4,4,4,6],[4,9,4,14],[6,9,18,9],[21,9,33,9],[36,9,48,9],[47,0,47,6],[48,0,51,6],[51,9,63,9]]}
[{"$f":"+'Cover Page'!$B$29","v":"Annual Performance Report 2022"},null,null,null,{"$f":"+'Cover Page'!$B$33","v":"Peterborough Energy Recovery Facility"}]
[]
["Monitoring of Total organic carbon emissions",null,null,"Whole Installation",null,null,"See  Notes in Cell Q3",null,null,{"$f":"+A3","v":"Monitoring of Total organic carbon emissions"},null,null,null,"Per Combustion Line",null,null,"Notes:"]
[null,null,null,null,null,null,null,null,null,null,null,null,null,null,null,null,"User to add logic to complete Whole installation, Table A5:G18. From the data in Per Combustion Line, Table J6:O79, subject to No. of lines installed"]
["mg/Nm3","1/2 Hourly Reference Periods",null,null,"Daily Reference Periods"]
[{"$f":"+'Cover Page'!C39","v":2022},"1/2 hourly TOC ELV","Monthly 1/2 hourly mean","Highest 1/2 hourly maximum","Daily TOC ELV","Monthly daily mean","Highest daily maximum",null,null,{"$f":"+A6","v":2022},"mg/Nm3","Monthly 1/2 hourly mean","Monthly 1/2 hourly maximum","Monthly daily mean","Monthly daily maximum"]
["Jan",20,{"$f":"L7","v":0.8},{"$f":"M7","v":3.2},10,{"$f":"N7","v":0.8},{"$f":"O7","v":2.5},null,null,"A1","Jan",0.8,3.2,0.8,2.5]
["Feb",20,{"$f":"L8","v":0.1},{"$f":"M8","v":7.3},10,{"$f":"N8","v":0.1},{"$f":"O8","v":0.2},null,null,null,"Feb",0.1,7.3,0.1,0.2]
["Mar",20,0.5,6.9,10,0.5,0.6,null,null,null,"Mar",0.5,6.9,0.5,0.6,null,"Whole Installation table A5:G18:"]
["Apr",20,0.4,3.8,10,0.4,1.1000000000000001,null,null,null,"Apr",0.4,3.8,0.4,1.1000000000000001,null,"Mean: for 1/2 hourly and daily periods calculate mean of values across all operational combustion lines for the month"]
["May",20,0.6,14.7,10,0.6,0.9,null,null,null,"May",0.6,14.7,0.6,0.9]
["Jun",20,0.6,2.6,10,0.6,0.9,null,null,null,"Jun",0.6,2.6,0.6,0.9]
["Jul",20,0.6,4.4000000000000004,10,0.5,0.7,null,null,null,"Jul",0.6,4.4000000000000004,0.5,0.7,null,"Maximum: for 1/2 hourly and daily periods use the highest value across all operational combustion lines for the month"]
["Aug",20,0.5,4,10,0.5,0.6,null,null,null,"Aug",0.5,4,0.5,0.6]
["Sep",20,0.6,13.3,10,0.5,0.8,null,null,null,"Sep",0.6,13.3,0.5,0.8]
["Oct",20,0.5,5.7,10,0.5,0.8,null,null,null,"Oct",0.5,5.7,0.5,0.8]
["Nov",20,0.4,6.6,10,0.4,0.7,null,null,null,"Nov",0.4,6.6,0.4,0.7]
["Dec",20,0.5,14.1,10,0.5,0.8,null,null,null,"Dec",0.5,14.1,0.5,0.8]
[null,null,null,null,null,null,null,null,null,null,"Annual",{"$f":"AVERAGE(L7:L18)","v":0.5083333333333333},{"$f":"MAX(M7:M18)","v":14.7},{"$f":"AVERAGE(N7:N18)","v":0.4916666666666667},{"$f":"MAX(O7:O18)","v":2.5}]
[]
[null,null,null,null,null,null,null,null,null,{"$f":"+A6","v":2022},"mg/Nm3","Monthly 1/2 hourly mean","Monthly 1/2 hourly maximum","Monthly daily mean","Monthly daily maximum"]
[null,null,null,null,null,null,null,null,null,"A2","Jan"]
[null,null,null,null,null,null,null,null,null,null,"Feb"]
[null,null,null,null,null,null,null,null,null,null,"Mar"]
[null,null,null,null,null,null,null,null,null,null,"Apr"]
[null,null,null,null,null,null,null,null,null,null,"May"]
[null,null,null,null,null,null,null,null,null,null,"Jun"]
[null,null,null,null,null,null,null,null,null,null,"Jul"]
[null,null,null,null,null,null,null,null,null,null,"Aug"]
[null,null,null,null,null,null,null,null,null,null,"Sep"]
[null,null,null,null,null,null,null,null,null,null,"Oct"]
[null,null,null,null,null,null,null,null,null,null,"Nov"]
[null,null,null,null,null,null,null,null,null,null,"Dec"]
[null,null,null,null,null,null,null,null,null,null,"Annual",{"$f":"AVERAGE(L22:L33)","v":{"$error":"#DIV/0!"}},{"$f":"MAX(M22:M33)","v":0},{"$f":"AVERAGE(N22:N33)","v":{"$error":"#DIV/0!"}},{"$f":"MAX(O22:O33)","v":0}]
[]
[null,null,null,null,null,null,null,null,null,{"$f":"+A6","v":2022},"mg/Nm3","Monthly 1/2 hourly mean","Monthly 1/2 hourly maximum","Monthly daily mean","Monthly daily maximum"]
[null,null,null,null,null,null,null,null,null,"A3","Jan"]
[null,null,null,null,null,null,null,null,null,null,"Feb"]
[null,null,null,null,null,null,null,null,null,null,"Mar"]
[null,null,null,null,null,null,null,null,null,null,"Apr"]
[null,null,null,null,null,null,null,null,null,null,"May"]
[null,null,null,null,null,null,null,null,null,null,"Jun"]
[null,null,null,null,null,null,null,null,null,null,"Jul"]
[null,null,null,null,null,null,null,null,null,null,"Aug"]
[null,null,null,null,null,null,null,null,null,null,"Sep"]
[null,null,null,null,null,null,null,null,null,null,"Oct"]
[null,null,null,null,null,null,null,null,null,null,"Nov"]
["Comments :",null,null,null,null,null,null,null,null,null,"Dec"]
[null,null,null,null,null,null,null,null,null,null,"Annual",{"$f":"AVERAGE(L37:L48)","v":{"$error":"#DIV/0!"}},{"$f":"MAX(M37:M48)","v":0},{"$f":"AVERAGE(N37:N48)","v":{"$error":"#DIV/0!"}},{"$f":"MAX(O37:O48)","v":0}]
[]
[null,null,null,null,null,null,null,null,null,{"$f":"+A6","v":2022},"mg/Nm3","Monthly 1/2 hourly mean","Monthly 1/2 hourly maximum","Monthly daily mean","Monthly daily maximum"]
[null,null,null,null,null,null,null,null,null,"A4","Jan"]
[null,null,null,null,null,null,null,null,null,null,"Feb"]
[null,null,null,null,null,null,null,null,null,null,"Mar"]
[null,null,null,null,null,null,null,null,null,null,"Apr"]
[null,null,null,null,null,null,null,null,null,null,"May"]
[null,null,null,null,null,null,null,null,null,null,"Jun"]
[null,null,null,null,null,null,null,null,null,null,"Jul"]
[null,null,null,null,null,null,null,null,null,null,"Aug"]
[null,null,null,null,null,null,null,null,null,null,"Sep"]
[null,null,null,null,null,null,null,null,null,null,"Oct"]
[null,null,null,null,null,null,null,null,null,null,"Nov"]
[null,null,null,null,null,null,null,null,null,null,"Dec"]
[null,null,null,null,null,null,null,null,null,null,"Annual",{"$f":"AVERAGE(L52:L63)","v":{"$error":"#DIV/0!"}},{"$f":"MAX(M52:M63)","v":0},{"$f":"AVERAGE(N52:N63)","v":{"$error":"#DIV/0!"}},{"$f":"MAX(O52:O63)","v":0}]
[]
[null,null,null,null,null,null,null,null,null,{"$f":"+A6","v":2022},"mg/Nm3","Monthly 1/2 hourly mean","Monthly 1/2 hourly maximum","Monthly daily mean","Monthly daily maximum"]
[null,null,null,null,null,null,null,null,null,"A5","Jan"]
[null,null,null,null,null,null,null,null,null,null,"Feb"]
[null,null,null,null,null,null,null,null,null,null,"Mar"]
[null,null,null,null,null,null,null,null,null,null,"Apr"]
[null,null,null,null,null,null,null,null,null,null,"May"]
[null,null,null,null,null,null,null,null,null,null,"Jun"]
[null,null,null,null,null,null,null,null,null,null,"Jul"]
[null,null,null,null,null,null,null,null,null,null,"Aug"]
[null,null,null,null,null,null,null,null,null,null,"Sep"]
[null,null,null,null,null,null,null,null,null,null,"Oct"]
[null,null,null,null,null,null,null,null,null,null,"Nov"]
[null,null,null,null,null,null,null,null,null,null,"Dec"]
[null,null,null,null,null,null,null,null,null,null,"Annual",{"$f":"AVERAGE(L67:L78)","v":{"$error":"#DIV/0!"}},{"$f":"MAX(M67:M78)","v":0},{"$f":"AVERAGE(N67:N78)","v":{"$error":"#DIV/0!"}},{"$f":"MAX(O67:O78)","v":0}]

{"sheet":"Particulates","index":20,"n_rows":79,"n_cols":17,"rows_kept":79,"cut":false,"hidden":false,"merged":[[3,16,7,18],[9,16,11,18],[12,16,15,18],[66,9,78,9],[4,1,4,3],[4,4,4,6],[4,9,4,14],[6,9,18,9],[21,9,33,9],[36,9,48,9],[47,0,47,6],[48,0,51,6],[51,9,63,9]]}
[{"$f":"+'Cover Page'!$B$29","v":"Annual Performance Report 2022"},null,null,null,{"$f":"+'Cover Page'!$B$33","v":"Peterborough Energy Recovery Facility"}]
[]
["Monitoring of Particulate matter emissions",null,null,"Whole Installation",null,null,"See  Notes in Cell Q3",null,null,{"$f":"+A3","v":"Monitoring of Particulate matter emissions"},null,null,null,"Per Combustion Line",null,null,"Notes:"]
[null,null,null,null,null,null,null,null,null,null,null,null,null,null,null,null,"User to add logic to complete Whole installation, Table A5:G18. From the data in Per Combustion Line, Table J6:O79, subject to No. of lines installed"]
["mg/Nm3","1/2 Hourly Reference Periods",null,null,"Daily Reference Periods"]
[{"$f":"+'Cover Page'!C39","v":2022},"1/2 hourly PM ELV","Monthly 1/2 hourly mean","Highest 1/2 hourly maximum","Daily PM ELV","Monthly daily mean","Highest daily maximum",null,null,{"$f":"+A6","v":2022},"mg/Nm3","Monthly 1/2 hourly mean","Monthly 1/2 hourly maximum","Monthly daily mean","Monthly daily maximum"]
["Jan",30,{"$f":"L7","v":0.5},{"$f":"M7","v":8.9},10,{"$f":"N7","v":0.5},{"$f":"O8","v":1.9},null,null,"A1","Jan",0.5,8.9,0.5,1.7]
["Feb",30,{"$f":"L8","v":1.2},{"$f":"M8","v":10.1},10,{"$f":"N8","v":1.1000000000000001},{"$f":"O9","v":3.2},null,null,null,"Feb",1.2,10.1,1.1000000000000001,1.9]
["Mar",30,1.1000000000000001,7.8,10,1,2.2999999999999998,null,null,null,"Mar",1.1000000000000001,7.8,1,3.2,null,"Whole Installation table A5:G18:"]
["Apr",30,0.7,4.4000000000000004,10,0.6,3.6,null,null,null,"Apr",0.7,4.4000000000000004,0.6,2.2999999999999998,null,"Mean: for 1/2 hourly and daily periods calculate mean of values across all operational combustion lines for the month"]
["May",30,2.7,8.4,10,2.7,2.7,null,null,null,"May",2.7,8.4,2.7,3.6]
["Jun",30,1.8,8.6999999999999993,10,1.8,1.8,null,null,null,"Jun",1.8,8.6999999999999993,1.8,2.7]
["Jul",30,1.1000000000000001,3.3,10,1,7,null,null,null,"Jul",1.1000000000000001,3.3,1,1.8,null,"Maximum: for 1/2 hourly and daily periods use the highest value across all operational combustion lines for the month"]
["Aug",30,4.9000000000000004,18.600000000000001,10,4.9000000000000004,4.8,null,null,null,"Aug",4.9000000000000004,18.600000000000001,4.9000000000000004,7]
["Sep",30,1.8,16.2,10,1.7,4.2,null,null,null,"Sep",1.8,16.2,1.7,4.8]
["Oct",30,1.6,10.3,10,1.5,2.1,null,null,null,"Oct",1.6,10.3,1.5,4.2]
["Nov",30,1,6.6,10,1,3.1,null,null,null,"Nov",1,6.6,1,2.1]
["Dec",30,1.7,9.1999999999999993,10,1.6,7,null,null,null,"Dec",1.7,9.1999999999999993,1.6,3.1]
[null,null,null,null,null,null,null,null,null,null,"Annual",{"$f":"AVERAGE(L7:L18)","v":1.675},{"$f":"MAX(M7:M18)","v":18.600000000000001},{"$f":"AVERAGE(N7:N18)","v":1.6166666666666665},{"$f":"MAX(O7:O18)","v":7}]
[]
[null,null,null,null,null,null,null,null,null,{"$f":"+A6","v":2022},"mg/Nm3","Monthly 1/2 hourly mean","Monthly 1/2 hourly maximum","Monthly daily mean","Monthly daily maximum"]
[null,null,null,null,null,null,null,null,null,"A2","Jan"]
[null,null,null,null,null,null,null,null,null,null,"Feb"]
[null,null,null,null,null,null,null,null,null,null,"Mar"]
[null,null,null,null,null,null,null,null,null,null,"Apr"]
[null,null,null,null,null,null,null,null,null,null,"May"]
[null,null,null,null,null,null,null,null,null,null,"Jun"]
[null,null,null,null,null,null,null,null,null,null,"Jul"]
[null,null,null,null,null,null,null,null,null,null,"Aug"]
[null,null,null,null,null,null,null,null,null,null,"Sep"]
[null,null,null,null,null,null,null,null,null,null,"Oct"]
[null,null,null,null,null,null,null,null,null,null,"Nov"]
[null,null,null,null,null,null,null,null,null,null,"Dec"]
[null,null,null,null,null,null,null,null,null,null,"Annual",{"$f":"AVERAGE(L22:L33)","v":{"$error":"#DIV/0!"}},{"$f":"MAX(M22:M33)","v":0},{"$f":"AVERAGE(N22:N33)","v":{"$error":"#DIV/0!"}},{"$f":"MAX(O22:O33)","v":0}]
[]
[null,null,null,null,null,null,null,null,null,{"$f":"+A6","v":2022},"mg/Nm3","Monthly 1/2 hourly mean","Monthly 1/2 hourly maximum","Monthly daily mean","Monthly daily maximum"]
[null,null,null,null,null,null,null,null,null,"A3","Jan"]
[null,null,null,null,null,null,null,null,null,null,"Feb"]
[null,null,null,null,null,null,null,null,null,null,"Mar"]
[null,null,null,null,null,null,null,null,null,null,"Apr"]
[null,null,null,null,null,null,null,null,null,null,"May"]
[null,null,null,null,null,null,null,null,null,null,"Jun"]
[null,null,null,null,null,null,null,null,null,null,"Jul"]
[null,null,null,null,null,null,null,null,null,null,"Aug"]
[null,null,null,null,null,null,null,null,null,null,"Sep"]
[null,null,null,null,null,null,null,null,null,null,"Oct"]
[null,null,null,null,null,null,null,null,null,null,"Nov"]
["Comments :",null,null,null,null,null,null,null,null,null,"Dec"]
[null,null,null,null,null,null,null,null,null,null,"Annual",{"$f":"AVERAGE(L37:L48)","v":{"$error":"#DIV/0!"}},{"$f":"MAX(M37:M48)","v":0},{"$f":"AVERAGE(N37:N48)","v":{"$error":"#DIV/0!"}},{"$f":"MAX(O37:O48)","v":0}]
[]
[null,null,null,null,null,null,null,null,null,{"$f":"+A6","v":2022},"mg/Nm3","Monthly 1/2 hourly mean","Monthly 1/2 hourly maximum","Monthly daily mean","Monthly daily maximum"]
[null,null,null,null,null,null,null,null,null,"A4","Jan"]
[null,null,null,null,null,null,null,null,null,null,"Feb"]
[null,null,null,null,null,null,null,null,null,null,"Mar"]
[null,null,null,null,null,null,null,null,null,null,"Apr"]
[null,null,null,null,null,null,null,null,null,null,"May"]
[null,null,null,null,null,null,null,null,null,null,"Jun"]
[null,null,null,null,null,null,null,null,null,null,"Jul"]
[null,null,null,null,null,null,null,null,null,null,"Aug"]
[null,null,null,null,null,null,null,null,null,null,"Sep"]
[null,null,null,null,null,null,null,null,null,null,"Oct"]
[null,null,null,null,null,null,null,null,null,null,"Nov"]
[null,null,null,null,null,null,null,null,null,null,"Dec"]
[null,null,null,null,null,null,null,null,null,null,"Annual",{"$f":"AVERAGE(L52:L63)","v":{"$error":"#DIV/0!"}},{"$f":"MAX(M52:M63)","v":0},{"$f":"AVERAGE(N52:N63)","v":{"$error":"#DIV/0!"}},{"$f":"MAX(O52:O63)","v":0}]
[]
[null,null,null,null,null,null,null,null,null,{"$f":"+A6","v":2022},"mg/Nm3","Monthly 1/2 hourly mean","Monthly 1/2 hourly maximum","Monthly daily mean","Monthly daily maximum"]
[null,null,null,null,null,null,null,null,null,"A5","Jan"]
[null,null,null,null,null,null,null,null,null,null,"Feb"]
[null,null,null,null,null,null,null,null,null,null,"Mar"]
[null,null,null,null,null,null,null,null,null,null,"Apr"]
[null,null,null,null,null,null,null,null,null,null,"May"]
[null,null,null,null,null,null,null,null,null,null,"Jun"]
[null,null,null,null,null,null,null,null,null,null,"Jul"]
[null,null,null,null,null,null,null,null,null,null,"Aug"]
[null,null,null,null,null,null,null,null,null,null,"Sep"]
[null,null,null,null,null,null,null,null,null,null,"Oct"]
[null,null,null,null,null,null,null,null,null,null,"Nov"]
[null,null,null,null,null,null,null,null,null,null,"Dec"]
[null,null,null,null,null,null,null,null,null,null,"Annual",{"$f":"AVERAGE(L67:L78)","v":{"$error":"#DIV/0!"}},{"$f":"MAX(M67:M78)","v":0},{"$f":"AVERAGE(N67:N78)","v":{"$error":"#DIV/0!"}},{"$f":"MAX(O67:O78)","v":0}]

{"sheet":"NH3","index":21,"n_rows":79,"n_cols":17,"rows_kept":79,"cut":false,"hidden":false,"merged":[[3,16,7,18],[9,16,11,18],[12,16,15,18],[66,9,78,9],[4,1,4,3],[4,4,4,6],[4,9,4,14],[6,9,18,9],[21,9,33,9],[36,9,48,9],[47,0,47,6],[48,0,51,6],[51,9,63,9]]}
[{"$f":"+'Cover Page'!$B$29","v":"Annual Performance Report 2022"},null,null,null,{"$f":"+'Cover Page'!$B$33","v":"Peterborough Energy Recovery Facility"}]
[]
["Monitoring of Ammnonia emissions ",null,null,"Whole Installation",null,null,"See  Notes in Cell Q3",null,null,{"$f":"+A3","v":"Monitoring of Ammnonia emissions "},null,null,null,"Per Combustion Line",null,null,"Notes:"]
[null,null,null,null,null,null,null,null,null,null,null,null,null,null,null,null,"User to add logic to complete Whole installation, Table A5:G18. From the data in Per Combustion Line, Table J6:O79, subject to No. of lines installed"]
["mg/Nm3","1/2 Hourly Reference Periods",null,null,"Daily Reference Periods"]
[{"$f":"+'Cover Page'!C39","v":2022},"1/2 hourly NH3 ELV","Monthly 1/2 hourly mean","Highest 1/2 hourly maximum","Daily NH3 ELV","Monthly daily mean","Highest daily maximum",null,null,{"$f":"+A6","v":2022},"mg/Nm3","Monthly 1/2 hourly mean","Monthly 1/2 hourly maximum","Monthly daily mean","Monthly daily maximum"]
["Jan",0,{"$f":"L7","v":0.4},{"$f":"M7","v":3.9},10,{"$f":"N7","v":0.4},{"$f":"O7","v":1.3},null,null,"A1","Jan",0.4,3.9,0.4,1.3]
["Feb",{"$f":"+B7","v":0},{"$f":"L8","v":0.8},{"$f":"M8","v":11.1},{"$f":"+E7","v":10},{"$f":"N8","v":0.8},{"$f":"O8","v":1.8},null,null,null,"Feb",0.8,11.1,0.8,1.8]
["Mar",{"$f":"+B8","v":0},2.6,14,{"$f":"+E8","v":10},2.6,6.1,null,null,null,"Mar",2.6,14,2.6,6.1,null,"Whole Installation table A5:G18:"]
["Apr",0,3.1,16,10,3,7.3,null,null,null,"Apr",3.1,16,3,7.3,null,"Mean: for 1/2 hourly and daily periods calculate mean of values across all operational combustion lines for the month"]
["May",0,1.9,10.6,10,1.9,3.2,null,null,null,"May",1.9,10.6,1.9,3.2]
["Jun",0,1.9,10.8,10,1.8,2.6,null,null,null,"Jun",1.9,10.8,1.8,2.6]
["Jul",0,2.1,14.6,10,2,3.5,null,null,null,"Jul",2.1,14.6,2,3.5,null,"Maximum: for 1/2 hourly and daily periods use the highest value across all operational combustion lines for the month"]
["Aug",0,2.5,11.9,10,2.4,5.7,null,null,null,"Aug",2.5,11.9,2.4,5.7]
["Sep",0,1.8,15.6,10,1.8,4.2,null,null,null,"Sep",1.8,15.6,1.8,4.2]
["Oct",0,2,14.2,10,2,5.0999999999999996,null,null,null,"Oct",2,14.2,2,5.0999999999999996]
["Nov",0,3.5,20.5,10,3.5,6.2,null,null,null,"Nov",3.5,20.5,3.5,6.2]
["Dec",0,4.5,31.1,10,4.5,9.1,null,null,null,"Dec",4.5,31.1,4.5,9.1]
[null,null,null,null,null,null,null,null,null,null,"Annual",{"$f":"AVERAGE(L7:L18)","v":2.2583333333333333},{"$f":"MAX(M7:M18)","v":31.1},{"$f":"AVERAGE(N7:N18)","v":2.2250000000000001},{"$f":"MAX(O7:O18)","v":9.1}]
[]
[null,null,null,null,null,null,null,null,null,{"$f":"+A6","v":2022},"mg/Nm3","Monthly 1/2 hourly mean","Monthly 1/2 hourly maximum","Monthly daily mean","Monthly daily maximum"]
[null,null,null,null,null,null,null,null,null,"A2","Jan"]
[null,null,null,null,null,null,null,null,null,null,"Feb"]
[null,null,null,null,null,null,null,null,null,null,"Mar"]
[null,null,null,null,null,null,null,null,null,null,"Apr"]
[null,null,null,null,null,null,null,null,null,null,"May"]
[null,null,null,null,null,null,null,null,null,null,"Jun"]
[null,null,null,null,null,null,null,null,null,null,"Jul"]
[null,null,null,null,null,null,null,null,null,null,"Aug"]
[null,null,null,null,null,null,null,null,null,null,"Sep"]
[null,null,null,null,null,null,null,null,null,null,"Oct"]
[null,null,null,null,null,null,null,null,null,null,"Nov"]
[null,null,null,null,null,null,null,null,null,null,"Dec"]
[null,null,null,null,null,null,null,null,null,null,"Annual",{"$f":"AVERAGE(L22:L33)","v":{"$error":"#DIV/0!"}},{"$f":"MAX(M22:M33)","v":0},{"$f":"AVERAGE(N22:N33)","v":{"$error":"#DIV/0!"}},{"$f":"MAX(O22:O33)","v":0}]
[]
[null,null,null,null,null,null,null,null,null,{"$f":"+A6","v":2022},"mg/Nm3","Monthly 1/2 hourly mean","Monthly 1/2 hourly maximum","Monthly daily mean","Monthly daily maximum"]
[null,null,null,null,null,null,null,null,null,"A3","Jan"]
[null,null,null,null,null,null,null,null,null,null,"Feb"]
[null,null,null,null,null,null,null,null,null,null,"Mar"]
[null,null,null,null,null,null,null,null,null,null,"Apr"]
[null,null,null,null,null,null,null,null,null,null,"May"]
[null,null,null,null,null,null,null,null,null,null,"Jun"]
[null,null,null,null,null,null,null,null,null,null,"Jul"]
[null,null,null,null,null,null,null,null,null,null,"Aug"]
[null,null,null,null,null,null,null,null,null,null,"Sep"]
[null,null,null,null,null,null,null,null,null,null,"Oct"]
[null,null,null,null,null,null,null,null,null,null,"Nov"]
["Comments :",null,null,null,null,null,null,null,null,null,"Dec"]
["An indicated ELV value of zero in the table above means that no ammonia limit is set in the permit.  ",null,null,null,null,null,null,null,null,null,"Annual",{"$f":"AVERAGE(L37:L48)","v":{"$error":"#DIV/0!"}},{"$f":"MAX(M37:M48)","v":0},{"$f":"AVERAGE(N37:N48)","v":{"$error":"#DIV/0!"}},{"$f":"MAX(O37:O48)","v":0}]
[]
[null,null,null,null,null,null,null,null,null,{"$f":"+A6","v":2022},"mg/Nm3","Monthly 1/2 hourly mean","Monthly 1/2 hourly maximum","Monthly daily mean","Monthly daily maximum"]
[null,null,null,null,null,null,null,null,null,"A4","Jan"]
[null,null,null,null,null,null,null,null,null,null,"Feb"]
[null,null,null,null,null,null,null,null,null,null,"Mar"]
[null,null,null,null,null,null,null,null,null,null,"Apr"]
[null,null,null,null,null,null,null,null,null,null,"May"]
[null,null,null,null,null,null,null,null,null,null,"Jun"]
[null,null,null,null,null,null,null,null,null,null,"Jul"]
[null,null,null,null,null,null,null,null,null,null,"Aug"]
[null,null,null,null,null,null,null,null,null,null,"Sep"]
[null,null,null,null,null,null,null,null,null,null,"Oct"]
[null,null,null,null,null,null,null,null,null,null,"Nov"]
[null,null,null,null,null,null,null,null,null,null,"Dec"]
[null,null,null,null,null,null,null,null,null,null,"Annual",{"$f":"AVERAGE(L52:L63)","v":{"$error":"#DIV/0!"}},{"$f":"MAX(M52:M63)","v":0},{"$f":"AVERAGE(N52:N63)","v":{"$error":"#DIV/0!"}},{"$f":"MAX(O52:O63)","v":0}]
[]
[null,null,null,null,null,null,null,null,null,{"$f":"+A6","v":2022},"mg/Nm3","Monthly 1/2 hourly mean","Monthly 1/2 hourly maximum","Monthly daily mean","Monthly daily maximum"]
[null,null,null,null,null,null,null,null,null,"A5","Jan"]
[null,null,null,null,null,null,null,null,null,null,"Feb"]
[null,null,null,null,null,null,null,null,null,null,"Mar"]
[null,null,null,null,null,null,null,null,null,null,"Apr"]
[null,null,null,null,null,null,null,null,null,null,"May"]
[null,null,null,null,null,null,null,null,null,null,"Jun"]
[null,null,null,null,null,null,null,null,null,null,"Jul"]
[null,null,null,null,null,null,null,null,null,null,"Aug"]
[null,null,null,null,null,null,null,null,null,null,"Sep"]
[null,null,null,null,null,null,null,null,null,null,"Oct"]
[null,null,null,null,null,null,null,null,null,null,"Nov"]
[null,null,null,null,null,null,null,null,null,null,"Dec"]
[null,null,null,null,null,null,null,null,null,null,"Annual",{"$f":"AVERAGE(L67:L78)","v":{"$error":"#DIV/0!"}},{"$f":"MAX(M67:M78)","v":0},{"$f":"AVERAGE(N67:N78)","v":{"$error":"#DIV/0!"}},{"$f":"MAX(O67:O78)","v":0}]